Workbook

Sheet CIS (hidden)
A1: Měsíc
A2: leden 2013 | B2: 0 | C2: leden 2013
A3: únor 2013 | B3: 1 | C3: únor 2013
A4: březen 2013 | B4: 2 | C4: březen 2013
A5: duben 2013 | B5: 3 | C5: duben 2013
A6: květen 2013 | B6: 4 | C6: květen 2013
A7: červen 2013 | B7: 5 | C7: červen 2013
A8: červenec 2013 | B8: 6 | C8: červenec 2013
A9: srpen 2013 | B9: 7 | C9: srpen 2013
A10: září 2013 | B10: 8 | C10: září 2013
A11: říjen 2013 | B11: 9 | C11: říjen 2013
A12: listopad 2013 | B12: 10 | C12: listopad 2013
A13: prosinec 2013 | B13: 11 | C13: prosinec 2013
A14: leden 2014 | B14: 12 | C14: leden 2014
A15: únor 2014 | B15: 13 | C15: únor 2014
A16: březen 2014 | B16: 14 | C16: březen 2014
A17: duben 2014 | B17: 15 | C17: duben 2014
A18: květen 2014 | B18: 16 | C18: květen 2014
A19: červen 2014 | B19: 17 | C19: červen 2014
A20: červenec 2014 | B20: 18 | C20: červenec 2014
A21: srpen 2014 | B21: 19 | C21: srpen 2014
A22: září 2014 | B22: 20 | C22: září 2014
A23: říjen 2014 | B23: 21 | C23: říjen 2014
A24: listopad 2014 | B24: 22 | C24: listopad 2014
A25: prosinec 2014 | B25: 23 | C25: prosinec 2014
A26: leden 2015 | B26: 24 | C26: leden 2015
A27: únor 2015 | B27: 25 | C27: únor 2015
A28: březen 2015 | B28: 26 | C28: březen 2015
A29: duben 2015 | B29: 27 | C29: duben 2015
A30: květen 2015 | B30: 28 | C30: květen 2015
A31: červen 2015 | B31: 29 | C31: červen 2015
A32: červenec 2015 | B32: 30 | C32: červenec 2015
A33: srpen 2015 | B33: 31 | C33: srpen 2015
A34: září 2015 | B34: 32 | C34: září 2015
A35: říjen 2015 | B35: 33 | C35: říjen 2015
A36: listopad 2015 | B36: 34 | C36: listopad 2015
A37: prosinec 2015 | B37: 35 | C37: prosinec 2015

Sheet Legenda
B9: Fakturace výroby z obnovitelných zdrojů elektřiny
B35: Soubor pro kalkulaci výkupní ceny dodávky elektřiny z obnovitelných zdrojů
B37: Popis souboru :
B39: naměřená data | C39: vstup pro manuální vložení hodinového profilu v kWh skutečné výroby
C40: (zdroj dat : ČEZ On-line www.cez.cz/cezonline)
B43: fakturace | C43: přehled fakturovaných cen včetně zobrazení vstupních cen/kurzů
C44: zobrazené hodnoty: | E44: měření MWh - hodnoty skutečného profilu výroby
E45: cena Denní trh - hodinové ceny denního trhu v EUR/MWh
E46: kurz ČNB [Kč/EUR] - denní kurz ČNB
E47: cenový tarif [Kc/MWh] - tarifní cena zavislá na ceně denního trhu
E48: fakturační hodnota [Kč] - hodinová cena dodávky v Kč
B50: graf: | C50: grafické zobrazení průběhu výroby a tarifní ceny komodity
B52: zdroje dat: | C52: http://www.ote-cr.cz/kratkodobe-trhy/elektrina/denni-trh
C53: http://www.cnb.cz/cs/index.html

Sheet namerena data
A2: období : | B2: Q1
A3: pole pro aktualizaci
A5: Datum | B5: hodina | C5: kWh
A6: 2015-01-01 | B6: 1 | C6: 0
A7: 2015-01-01 | B7: 2 | C7: 0
A8: 2015-01-01 | B8: 3 | C8: 0
A9: 2015-01-01 | B9: 4 | C9: 0
A10: 2015-01-01 | B10: 5 | C10: 0
A11: 2015-01-01 | B11: 6 | C11: 0
A12: 2015-01-01 | B12: 7 | C12: 0
A13: 2015-01-01 | B13: 8 | C13: 0
A14: 2015-01-01 | B14: 9 | C14: 0
A15: 2015-01-01 | B15: 10 | C15: 0
A16: 2015-01-01 | B16: 11 | C16: 0
A17: 2015-01-01 | B17: 12 | C17: 0
A18: 2015-01-01 | B18: 13 | C18: 0
A19: 2015-01-01 | B19: 14 | C19: 0
A20: 2015-01-01 | B20: 15 | C20: 0
A21: 2015-01-01 | B21: 16 | C21: 0
A22: 2015-01-01 | B22: 17 | C22: 0
A23: 2015-01-01 | B23: 18 | C23: 0
A24: 2015-01-01 | B24: 19 | C24: 0
A25: 2015-01-01 | B25: 20 | C25: 0
A26: 2015-01-01 | B26: 21 | C26: 0
A27: 2015-01-01 | B27: 22 | C27: 0
A28: 2015-01-01 | B28: 23 | C28: 0
A29: 2015-01-01 | B29: 24 | C29: 0
A30: =A6+1 -> 2015-01-02 | B30: 1 | C30: 0
A31: =A7+1 -> 2015-01-02 | B31: 2 | C31: 0
A32: 2015-01-02 | B32: 3 | C32: 0
A33: 2015-01-02 | B33: 4 | C33: 0
A34: 2015-01-02 | B34: 5 | C34: 0
A35: 2015-01-02 | B35: 6 | C35: 0
A36: 2015-01-02 | B36: 7 | C36: 0
A37: 2015-01-02 | B37: 8 | C37: 0
A38: 2015-01-02 | B38: 9 | C38: 0
A39: 2015-01-02 | B39: 10 | C39: 0
A40: 2015-01-02 | B40: 11 | C40: 0
A41: 2015-01-02 | B41: 12 | C41: 0
A42: 2015-01-02 | B42: 13 | C42: 0
A43: 2015-01-02 | B43: 14 | C43: 0
A44: 2015-01-02 | B44: 15 | C44: 0
A45: 2015-01-02 | B45: 16 | C45: 0
A46: 2015-01-02 | B46: 17 | C46: 0
A47: 2015-01-02 | B47: 18 | C47: 0
A48: 2015-01-02 | B48: 19 | C48: 0
A49: 2015-01-02 | B49: 20 | C49: 0
A50: 2015-01-02 | B50: 21 | C50: 0
A51: 2015-01-02 | B51: 22 | C51: 0
A52: 2015-01-02 | B52: 23 | C52: 0
A53: 2015-01-02 | B53: 24 | C53: 0
A54: 2015-01-03 | B54: 1 | C54: 0
A55: 2015-01-03 | B55: 2 | C55: 0
A56: 2015-01-03 | B56: 3 | C56: 0
A57: 2015-01-03 | B57: 4 | C57: 0
A58: 2015-01-03 | B58: 5 | C58: 0
A59: 2015-01-03 | B59: 6 | C59: 0
A60: 2015-01-03 | B60: 7 | C60: 0
A61: 2015-01-03 | B61: 8 | C61: 0
A62: 2015-01-03 | B62: 9 | C62: 0
A63: 2015-01-03 | B63: 10 | C63: 0
A64: 2015-01-03 | B64: 11 | C64: 0
A65: 2015-01-03 | B65: 12 | C65: 0
A66: 2015-01-03 | B66: 13 | C66: 0
A67: 2015-01-03 | B67: 14 | C67: 0
A68: 2015-01-03 | B68: 15 | C68: 0
A69: 2015-01-03 | B69: 16 | C69: 0
A70: 2015-01-03 | B70: 17 | C70: 0
A71: 2015-01-03 | B71: 18 | C71: 0
A72: 2015-01-03 | B72: 19 | C72: 0
A73: 2015-01-03 | B73: 20 | C73: 0
A74: 2015-01-03 | B74: 21 | C74: 0
A75: 2015-01-03 | B75: 22 | C75: 0
A76: 2015-01-03 | B76: 23 | C76: 0
A77: 2015-01-03 | B77: 24 | C77: 0
A78: 2015-01-04 | B78: 1 | C78: 0
A79: 2015-01-04 | B79: 2 | C79: 0
A80: 2015-01-04 | B80: 3 | C80: 0
A81: 2015-01-04 | B81: 4 | C81: 0
A82: 2015-01-04 | B82: 5 | C82: 0
A83: 2015-01-04 | B83: 6 | C83: 0
A84: 2015-01-04 | B84: 7 | C84: 0
A85: 2015-01-04 | B85: 8 | C85: 0
A86: 2015-01-04 | B86: 9 | C86: 0
A87: 2015-01-04 | B87: 10 | C87: 0
A88: 2015-01-04 | B88: 11 | C88: 0
A89: 2015-01-04 | B89: 12 | C89: 0
A90: 2015-01-04 | B90: 13 | C90: 0
A91: 2015-01-04 | B91: 14 | C91: 0
A92: 2015-01-04 | B92: 15 | C92: 0
A93: 2015-01-04 | B93: 16 | C93: 0
A94: 2015-01-04 | B94: 17 | C94: 0
A95: =A71+1 -> 2015-01-04 | B95: 18 | C95: 0
A96: 2015-01-04 | B96: 19 | C96: 0
A97: 2015-01-04 | B97: 20 | C97: 0
A98: 2015-01-04 | B98: 21 | C98: 0
A99: 2015-01-04 | B99: 22 | C99: 0
A100: 2015-01-04 | B100: 23 | C100: 0
A101: 2015-01-04 | B101: 24 | C101: 0
A102: 2015-01-05 | B102: 1 | C102: 0
A103: 2015-01-05 | B103: 2 | C103: 0
A104: 2015-01-05 | B104: 3 | C104: 0
A105: 2015-01-05 | B105: 4 | C105: 0
A106: 2015-01-05 | B106: 5 | C106: 0
A107: 2015-01-05 | B107: 6 | C107: 0
A108: 2015-01-05 | B108: 7 | C108: 0
A109: 2015-01-05 | B109: 8 | C109: 0
A110: 2015-01-05 | B110: 9 | C110: 0
A111: 2015-01-05 | B111: 10 | C111: 0
A112: 2015-01-05 | B112: 11 | C112: 0
A113: 2015-01-05 | B113: 12 | C113: 0
A114: 2015-01-05 | B114: 13 | C114: 0
A115: 2015-01-05 | B115: 14 | C115: 0
A116: 2015-01-05 | B116: 15 | C116: 0
A117: 2015-01-05 | B117: 16 | C117: 0
A118: 2015-01-05 | B118: 17 | C118: 0
A119: 2015-01-05 | B119: 18 | C119: 0
A120: 2015-01-05 | B120: 19 | C120: 0
A121: 2015-01-05 | B121: 20 | C121: 0
A122: 2015-01-05 | B122: 21 | C122: 0
A123: 2015-01-05 | B123: 22 | C123: 0
A124: 2015-01-05 | B124: 23 | C124: 0
A125: 2015-01-05 | B125: 24 | C125: 0
A126: 2015-01-06 | B126: 1 | C126: 0
A127: 2015-01-06 | B127: 2 | C127: 0
A128: 2015-01-06 | B128: 3 | C128: 0
A129: 2015-01-06 | B129: 4 | C129: 0
A130: 2015-01-06 | B130: 5 | C130: 0
A131: 2015-01-06 | B131: 6 | C131: 0
A132: 2015-01-06 | B132: 7 | C132: 0
A133: 2015-01-06 | B133: 8 | C133: 0
A134: 2015-01-06 | B134: 9 | C134: 0
A135: 2015-01-06 | B135: 10 | C135: 0
A136: 2015-01-06 | B136: 11 | C136: 0
A137: 2015-01-06 | B137: 12 | C137: 0
A138: 2015-01-06 | B138: 13 | C138: 0
A139: 2015-01-06 | B139: 14 | C139: 0
A140: 2015-01-06 | B140: 15 | C140: 0
A141: 2015-01-06 | B141: 16 | C141: 0
A142: 2015-01-06 | B142: 17 | C142: 0
A143: 2015-01-06 | B143: 18 | C143: 0
A144: 2015-01-06 | B144: 19 | C144: 0
A145: 2015-01-06 | B145: 20 | C145: 0
A146: 2015-01-06 | B146: 21 | C146: 0
A147: 2015-01-06 | B147: 22 | C147: 0
A148: 2015-01-06 | B148: 23 | C148: 0
A149: 2015-01-06 | B149: 24 | C149: 0
A150: 2015-01-07 | B150: 1 | C150: 0
A151: 2015-01-07 | B151: 2 | C151: 0
A152: 2015-01-07 | B152: 3 | C152: 0
A153: 2015-01-07 | B153: 4 | C153: 0
A154: 2015-01-07 | B154: 5 | C154: 0
A155: 2015-01-07 | B155: 6 | C155: 0
A156: 2015-01-07 | B156: 7 | C156: 0
A157: 2015-01-07 | B157: 8 | C157: 0
A158: 2015-01-07 | B158: 9 | C158: 0
A159: =A135+1 -> 2015-01-07 | B159: 10 | C159: 0
A160: 2015-01-07 | B160: 11 | C160: 0
A161: 2015-01-07 | B161: 12 | C161: 0
A162: 2015-01-07 | B162: 13 | C162: 0
A163: 2015-01-07 | B163: 14 | C163: 0
A164: 2015-01-07 | B164: 15 | C164: 0
A165: 2015-01-07 | B165: 16 | C165: 0
A166: 2015-01-07 | B166: 17 | C166: 0
A167: 2015-01-07 | B167: 18 | C167: 0
A168: 2015-01-07 | B168: 19 | C168: 0
A169: 2015-01-07 | B169: 20 | C169: 0
A170: 2015-01-07 | B170: 21 | C170: 0
A171: 2015-01-07 | B171: 22 | C171: 0
A172: 2015-01-07 | B172: 23 | C172: 0
A173: 2015-01-07 | B173: 24 | C173: 0
A174: 2015-01-08 | B174: 1 | C174: 0
A175: 2015-01-08 | B175: 2 | C175: 0
A176: 2015-01-08 | B176: 3 | C176: 0
A177: 2015-01-08 | B177: 4 | C177: 0
A178: 2015-01-08 | B178: 5 | C178: 0
A179: 2015-01-08 | B179: 6 | C179: 0
A180: 2015-01-08 | B180: 7 | C180: 0
A181: 2015-01-08 | B181: 8 | C181: 0
A182: 2015-01-08 | B182: 9 | C182: 0
A183: 2015-01-08 | B183: 10 | C183: 0
A184: 2015-01-08 | B184: 11 | C184: 0
A185: 2015-01-08 | B185: 12 | C185: 0
A186: 2015-01-08 | B186: 13 | C186: 0
A187: 2015-01-08 | B187: 14 | C187: 0
A188: 2015-01-08 | B188: 15 | C188: 0
A189: 2015-01-08 | B189: 16 | C189: 0
A190: 2015-01-08 | B190: 17 | C190: 0
A191: 2015-01-08 | B191: 18 | C191: 0
A192: 2015-01-08 | B192: 19 | C192: 0
A193: 2015-01-08 | B193: 20 | C193: 0
A194: 2015-01-08 | B194: 21 | C194: 0
A195: 2015-01-08 | B195: 22 | C195: 0
A196: 2015-01-08 | B196: 23 | C196: 0
A197: 2015-01-08 | B197: 24 | C197: 0
A198: 2015-01-09 | B198: 1 | C198: 0
A199: 2015-01-09 | B199: 2 | C199: 0
A200: 2015-01-09 | B200: 3 | C200: 0
A201: 2015-01-09 | B201: 4 | C201: 0
A202: 2015-01-09 | B202: 5 | C202: 0
... 1962 more rows

Sheet fakturace
C4: Fakturace výroby z obnovitelných zdrojů elektřiny | G4: ='namerena data'!B2 -> Q1
B7: Název pole | C7: měření [MWh] | D7: cena Denní trh [EUR/MWh] | E7: kurz ČNB [Kč/EUR] | F7: cenový tarif [Kc/MWh] | G7: fakturační hodnota [Kč]
B8: Suma | C8: =SUBTOTAL(9,C16:C2174) -> 0 | D8: - | E8: - | F8: - | G8: =SUBTOTAL(9,G16:G2174) -> 0
B9: Minimum | C9: =SUBTOTAL(5,C16:C2174) -> 0 | D9: =SUBTOTAL(5,D16:D2174) -> -10 | E9: =SUBTOTAL(5,E16:E2174) -> 27.185 | F9: =SUBTOTAL(5,F16:F2174) -> -880.6 | G9: =SUBTOTAL(5,G16:G2174) -> 0
B10: Maximum | C10: =SUBTOTAL(4,C16:C2174) -> 0 | D10: =SUBTOTAL(4,D16:D2174) -> 76.56 | E10: =SUBTOTAL(4,E16:E2174) -> 28.41 | F10: =SUBTOTAL(4,F16:F2174) -> 1496.9784 | G10: =SUBTOTAL(4,G16:G2174) -> 0
B11: Aritmetický průměr prostý | C11: =IF(SUBTOTAL(9,C16:C2174)=0," -",SUBTOTAL(1,C16:C2174)) -> - | D11: =IF(SUBTOTAL(9,D16:D2174)=0," -",SUBTOTAL(1,D16:D2174)) -> 31.96269569 | E11: =IF(SUBTOTAL(9,E16:E2174)=0," -",SUBTOTAL(1,E16:E2174)) -> 27.62399027 | F11: =IF(SUBTOTAL(9,F16:F2174)=0," -",SUBTOTAL(1,F16:F2174)) -> 282.6645913 | G11: =IF(SUBTOTAL(9,G16:G2174)=0," -",SUBTOTAL(1,G16:G2174)) -> -
B13: Cenový tarif | C13: hodinová cena denního trhu snížena o : | F13: 600 | G13: Kč/MWh
B15: Datum | C15: měření [MWh] | D15: =D7 -> cena Denní trh [EUR/MWh] | E15: kurz ČNB [Kč/EUR] | F15: cenový tarif [Kc/MWh] | G15: fakturační hodnota [Kč]
B16: ='namerena data'!A6+('namerena data'!B6-1)/24 -> 2015-01-01 | C16: =IF('namerena data'!C6>0,'namerena data'!C6/1000,0) -> 0 | D16: 26.48 | E16: 27.725 | F16: =+IF(AND(ISNUMBER(D16),ISNUMBER(E16)),D16*E16-$F$13,0) -> 134.158 | G16: =+(C16*F16) -> 0
B17: ='namerena data'!A7+('namerena data'!B7-1)/24 -> 2015-01-01T01:00:00 | C17: =IF('namerena data'!C7>0,'namerena data'!C7/1000,0) -> 0 | D17: 24.2 | E17: 27.725 | F17: =+IF(AND(ISNUMBER(D17),ISNUMBER(E17)),D17*E17-$F$13,0) -> 70.945 | G17: =+(C17*F17) -> 0
B18: ='namerena data'!A8+('namerena data'!B8-1)/24 -> 2015-01-01T02:00:00 | C18: =IF('namerena data'!C8>0,'namerena data'!C8/1000,0) -> 0 | D18: 22.06 | E18: 27.725 | F18: 11.6135 | G18: 0
B19: ='namerena data'!A9+('namerena data'!B9-1)/24 -> 2015-01-01T03:00:00 | C19: =IF('namerena data'!C9>0,'namerena data'!C9/1000,0) -> 0 | D19: 20.27 | E19: 27.725 | F19: -38.01425 | G19: 0
B20: ='namerena data'!A10+('namerena data'!B10-1)/24 -> 2015-01-01T04:00:00 | C20: =IF('namerena data'!C10>0,'namerena data'!C10/1000,0) -> 0 | D20: 19.17 | E20: 27.725 | F20: -68.51175 | G20: 0
B21: ='namerena data'!A11+('namerena data'!B11-1)/24 -> 2015-01-01T05:00:00 | C21: =IF('namerena data'!C11>0,'namerena data'!C11/1000,0) -> 0 | D21: 17.9 | E21: 27.725 | F21: -103.7225 | G21: 0
B22: ='namerena data'!A12+('namerena data'!B12-1)/24 -> 2015-01-01T06:00:00 | C22: =IF('namerena data'!C12>0,'namerena data'!C12/1000,0) -> 0 | D22: 17.29 | E22: 27.725 | F22: -120.63475 | G22: 0
B23: ='namerena data'!A13+('namerena data'!B13-1)/24 -> 2015-01-01T07:00:00 | C23: =IF('namerena data'!C13>0,'namerena data'!C13/1000,0) -> 0 | D23: 17.39 | E23: 27.725 | F23: -117.86225 | G23: 0
B24: ='namerena data'!A14+('namerena data'!B14-1)/24 -> 2015-01-01T08:00:00 | C24: =IF('namerena data'!C14>0,'namerena data'!C14/1000,0) -> 0 | D24: 15.84 | E24: 27.725 | F24: -160.836 | G24: 0
B25: ='namerena data'!A15+('namerena data'!B15-1)/24 -> 2015-01-01T09:00:00 | C25: =IF('namerena data'!C15>0,'namerena data'!C15/1000,0) -> 0 | D25: 18.55 | E25: 27.725 | F25: -85.70125 | G25: 0
B26: ='namerena data'!A16+('namerena data'!B16-1)/24 -> 2015-01-01T10:00:00 | C26: =IF('namerena data'!C16>0,'namerena data'!C16/1000,0) -> 0 | D26: 21.97 | E26: 27.725 | F26: 9.11825 | G26: 0
B27: ='namerena data'!A17+('namerena data'!B17-1)/24 -> 2015-01-01T11:00:00 | C27: =IF('namerena data'!C17>0,'namerena data'!C17/1000,0) -> 0 | D27: 23.94 | E27: 27.725 | F27: 63.7365 | G27: 0
B28: ='namerena data'!A18+('namerena data'!B18-1)/24 -> 2015-01-01T12:00:00 | C28: =IF('namerena data'!C18>0,'namerena data'!C18/1000,0) -> 0 | D28: 24.87 | E28: 27.725 | F28: 89.52075 | G28: 0
B29: ='namerena data'!A19+('namerena data'!B19-1)/24 -> 2015-01-01T13:00:00 | C29: =IF('namerena data'!C19>0,'namerena data'!C19/1000,0) -> 0 | D29: 24 | E29: 27.725 | F29: 65.4 | G29: 0
B30: ='namerena data'!A20+('namerena data'!B20-1)/24 -> 2015-01-01T14:00:00 | C30: =IF('namerena data'!C20>0,'namerena data'!C20/1000,0) -> 0 | D30: 23.4 | E30: 27.725 | F30: 48.765 | G30: 0
B31: ='namerena data'!A21+('namerena data'!B21-1)/24 -> 2015-01-01T15:00:00 | C31: =IF('namerena data'!C21>0,'namerena data'!C21/1000,0) -> 0 | D31: 23.3 | E31: 27.725 | F31: 45.9925 | G31: 0
B32: ='namerena data'!A22+('namerena data'!B22-1)/24 -> 2015-01-01T16:00:00 | C32: =IF('namerena data'!C22>0,'namerena data'!C22/1000,0) -> 0 | D32: 25.9 | E32: 27.725 | F32: 118.0775 | G32: 0
B33: ='namerena data'!A23+('namerena data'!B23-1)/24 -> 2015-01-01T17:00:00 | C33: =IF('namerena data'!C23>0,'namerena data'!C23/1000,0) -> 0 | D33: 30.5 | E33: 27.725 | F33: 245.6125 | G33: 0
B34: ='namerena data'!A24+('namerena data'!B24-1)/24 -> 2015-01-01T18:00:00 | C34: =IF('namerena data'!C24>0,'namerena data'!C24/1000,0) -> 0 | D34: 29.17 | E34: 27.725 | F34: 208.73825 | G34: 0
B35: ='namerena data'!A25+('namerena data'!B25-1)/24 -> 2015-01-01T19:00:00 | C35: =IF('namerena data'!C25>0,'namerena data'!C25/1000,0) -> 0 | D35: 27.09 | E35: 27.725 | F35: 151.07025 | G35: 0
B36: ='namerena data'!A26+('namerena data'!B26-1)/24 -> 2015-01-01T20:00:00 | C36: =IF('namerena data'!C26>0,'namerena data'!C26/1000,0) -> 0 | D36: 22.2 | E36: 27.725 | F36: 15.495 | G36: 0
B37: ='namerena data'!A27+('namerena data'!B27-1)/24 -> 2015-01-01T21:00:00 | C37: =IF('namerena data'!C27>0,'namerena data'!C27/1000,0) -> 0 | D37: 18 | E37: 27.725 | F37: -100.95 | G37: 0
B38: ='namerena data'!A28+('namerena data'!B28-1)/24 -> 2015-01-01T22:00:00 | C38: =IF('namerena data'!C28>0,'namerena data'!C28/1000,0) -> 0 | D38: 16.7 | E38: 27.725 | F38: -136.9925 | G38: 0
B39: ='namerena data'!A29+('namerena data'!B29-1)/24 -> 2015-01-01T23:00:00 | C39: =IF('namerena data'!C29>0,'namerena data'!C29/1000,0) -> 0 | D39: 10.7 | E39: 27.725 | F39: -303.3425 | G39: 0
B40: ='namerena data'!A30+('namerena data'!B30-1)/24 -> 2015-01-02 | C40: =IF('namerena data'!C30>0,'namerena data'!C30/1000,0) -> 0 | D40: 0.01 | E40: 27.7 | F40: -599.723 | G40: 0
B41: ='namerena data'!A31+('namerena data'!B31-1)/24 -> 2015-01-02T01:00:00 | C41: =IF('namerena data'!C31>0,'namerena data'!C31/1000,0) -> 0 | D41: -0.3 | E41: 27.7 | F41: -608.31 | G41: 0
B42: ='namerena data'!A32+('namerena data'!B32-1)/24 -> 2015-01-02T02:00:00 | C42: =IF('namerena data'!C32>0,'namerena data'!C32/1000,0) -> 0 | D42: -3.5 | E42: 27.7 | F42: -696.95 | G42: 0
B43: ='namerena data'!A33+('namerena data'!B33-1)/24 -> 2015-01-02T03:00:00 | C43: =IF('namerena data'!C33>0,'namerena data'!C33/1000,0) -> 0 | D43: -4.2 | E43: 27.7 | F43: -716.34 | G43: 0
B44: ='namerena data'!A34+('namerena data'!B34-1)/24 -> 2015-01-02T04:00:00 | C44: =IF('namerena data'!C34>0,'namerena data'!C34/1000,0) -> 0 | D44: -3.26 | E44: 27.7 | F44: -690.302 | G44: 0
B45: ='namerena data'!A35+('namerena data'!B35-1)/24 -> 2015-01-02T05:00:00 | C45: =IF('namerena data'!C35>0,'namerena data'!C35/1000,0) -> 0 | D45: -0.2 | E45: 27.7 | F45: -605.54 | G45: 0
B46: ='namerena data'!A36+('namerena data'!B36-1)/24 -> 2015-01-02T06:00:00 | C46: =IF('namerena data'!C36>0,'namerena data'!C36/1000,0) -> 0 | D46: 1.8 | E46: 27.7 | F46: -550.14 | G46: 0
B47: ='namerena data'!A37+('namerena data'!B37-1)/24 -> 2015-01-02T07:00:00 | C47: =IF('namerena data'!C37>0,'namerena data'!C37/1000,0) -> 0 | D47: 8.7 | E47: 27.7 | F47: -359.01 | G47: 0
B48: ='namerena data'!A38+('namerena data'!B38-1)/24 -> 2015-01-02T08:00:00 | C48: =IF('namerena data'!C38>0,'namerena data'!C38/1000,0) -> 0 | D48: 13.15 | E48: 27.7 | F48: -235.745 | G48: 0
B49: ='namerena data'!A39+('namerena data'!B39-1)/24 -> 2015-01-02T09:00:00 | C49: =IF('namerena data'!C39>0,'namerena data'!C39/1000,0) -> 0 | D49: 17.2 | E49: 27.7 | F49: -123.56 | G49: 0
B50: ='namerena data'!A40+('namerena data'!B40-1)/24 -> 2015-01-02T10:00:00 | C50: =IF('namerena data'!C40>0,'namerena data'!C40/1000,0) -> 0 | D50: 19 | E50: 27.7 | F50: -73.7 | G50: 0
B51: ='namerena data'!A41+('namerena data'!B41-1)/24 -> 2015-01-02T11:00:00 | C51: =IF('namerena data'!C41>0,'namerena data'!C41/1000,0) -> 0 | D51: 19.15 | E51: 27.7 | F51: -69.545 | G51: 0
B52: ='namerena data'!A42+('namerena data'!B42-1)/24 -> 2015-01-02T12:00:00 | C52: =IF('namerena data'!C42>0,'namerena data'!C42/1000,0) -> 0 | D52: 20 | E52: 27.7 | F52: -46 | G52: 0
B53: ='namerena data'!A43+('namerena data'!B43-1)/24 -> 2015-01-02T13:00:00 | C53: =IF('namerena data'!C43>0,'namerena data'!C43/1000,0) -> 0 | D53: 20 | E53: 27.7 | F53: -46 | G53: 0
B54: ='namerena data'!A44+('namerena data'!B44-1)/24 -> 2015-01-02T14:00:00 | C54: =IF('namerena data'!C44>0,'namerena data'!C44/1000,0) -> 0 | D54: 20.5 | E54: 27.7 | F54: -32.15 | G54: 0
B55: ='namerena data'!A45+('namerena data'!B45-1)/24 -> 2015-01-02T15:00:00 | C55: =IF('namerena data'!C45>0,'namerena data'!C45/1000,0) -> 0 | D55: 20.5 | E55: 27.7 | F55: -32.15 | G55: 0
B56: ='namerena data'!A46+('namerena data'!B46-1)/24 -> 2015-01-02T16:00:00 | C56: =IF('namerena data'!C46>0,'namerena data'!C46/1000,0) -> 0 | D56: 23 | E56: 27.7 | F56: 37.1 | G56: 0
B57: ='namerena data'!A47+('namerena data'!B47-1)/24 -> 2015-01-02T17:00:00 | C57: =IF('namerena data'!C47>0,'namerena data'!C47/1000,0) -> 0 | D57: 26 | E57: 27.7 | F57: 120.2 | G57: 0
B58: ='namerena data'!A48+('namerena data'!B48-1)/24 -> 2015-01-02T18:00:00 | C58: =IF('namerena data'!C48>0,'namerena data'!C48/1000,0) -> 0 | D58: 25.5 | E58: 27.7 | F58: 106.35 | G58: 0
B59: ='namerena data'!A49+('namerena data'!B49-1)/24 -> 2015-01-02T19:00:00 | C59: =IF('namerena data'!C49>0,'namerena data'!C49/1000,0) -> 0 | D59: 23 | E59: 27.7 | F59: 37.1 | G59: 0
B60: ='namerena data'!A50+('namerena data'!B50-1)/24 -> 2015-01-02T20:00:00 | C60: =IF('namerena data'!C50>0,'namerena data'!C50/1000,0) -> 0 | D60: 17.2 | E60: 27.7 | F60: -123.56 | G60: 0
B61: ='namerena data'!A51+('namerena data'!B51-1)/24 -> 2015-01-02T21:00:00 | C61: =IF('namerena data'!C51>0,'namerena data'!C51/1000,0) -> 0 | D61: 14 | E61: 27.7 | F61: -212.2 | G61: 0
B62: ='namerena data'!A52+('namerena data'!B52-1)/24 -> 2015-01-02T22:00:00 | C62: =IF('namerena data'!C52>0,'namerena data'!C52/1000,0) -> 0 | D62: 11.65 | E62: 27.7 | F62: -277.295 | G62: 0
B63: ='namerena data'!A53+('namerena data'!B53-1)/24 -> 2015-01-02T23:00:00 | C63: =IF('namerena data'!C53>0,'namerena data'!C53/1000,0) -> 0 | D63: 5 | E63: 27.7 | F63: -461.5 | G63: 0
B64: ='namerena data'!A54+('namerena data'!B54-1)/24 -> 2015-01-03 | C64: =IF('namerena data'!C54>0,'namerena data'!C54/1000,0) -> 0 | D64: 0.59 | E64: 27.7 | F64: -583.657 | G64: 0
B65: ='namerena data'!A55+('namerena data'!B55-1)/24 -> 2015-01-03T01:00:00 | C65: =IF('namerena data'!C55>0,'namerena data'!C55/1000,0) -> 0 | D65: -0.7 | E65: 27.7 | F65: -619.39 | G65: 0
B66: ='namerena data'!A56+('namerena data'!B56-1)/24 -> 2015-01-03T02:00:00 | C66: =IF('namerena data'!C56>0,'namerena data'!C56/1000,0) -> 0 | D66: -2 | E66: 27.7 | F66: -655.4 | G66: 0
B67: ='namerena data'!A57+('namerena data'!B57-1)/24 -> 2015-01-03T03:00:00 | C67: =IF('namerena data'!C57>0,'namerena data'!C57/1000,0) -> 0 | D67: -1.06 | E67: 27.7 | F67: -629.362 | G67: 0
B68: ='namerena data'!A58+('namerena data'!B58-1)/24 -> 2015-01-03T04:00:00 | C68: =IF('namerena data'!C58>0,'namerena data'!C58/1000,0) -> 0 | D68: 0.25 | E68: 27.7 | F68: -593.075 | G68: 0
B69: ='namerena data'!A59+('namerena data'!B59-1)/24 -> 2015-01-03T05:00:00 | C69: =IF('namerena data'!C59>0,'namerena data'!C59/1000,0) -> 0 | D69: 0.99 | E69: 27.7 | F69: -572.577 | G69: 0
B70: ='namerena data'!A60+('namerena data'!B60-1)/24 -> 2015-01-03T06:00:00 | C70: =IF('namerena data'!C60>0,'namerena data'!C60/1000,0) -> 0 | D70: 5.26 | E70: 27.7 | F70: -454.298 | G70: 0
B71: ='namerena data'!A61+('namerena data'!B61-1)/24 -> 2015-01-03T07:00:00 | C71: =IF('namerena data'!C61>0,'namerena data'!C61/1000,0) -> 0 | D71: 11.84 | E71: 27.7 | F71: -272.032 | G71: 0
B72: ='namerena data'!A62+('namerena data'!B62-1)/24 -> 2015-01-03T08:00:00 | C72: =IF('namerena data'!C62>0,'namerena data'!C62/1000,0) -> 0 | D72: 15.3 | E72: 27.7 | F72: -176.19 | G72: 0
B73: ='namerena data'!A63+('namerena data'!B63-1)/24 -> 2015-01-03T09:00:00 | C73: =IF('namerena data'!C63>0,'namerena data'!C63/1000,0) -> 0 | D73: 19.05 | E73: 27.7 | F73: -72.315 | G73: 0
B74: ='namerena data'!A64+('namerena data'!B64-1)/24 -> 2015-01-03T10:00:00 | C74: =IF('namerena data'!C64>0,'namerena data'!C64/1000,0) -> 0 | D74: 22.37 | E74: 27.7 | F74: 19.649 | G74: 0
B75: ='namerena data'!A65+('namerena data'!B65-1)/24 -> 2015-01-03T11:00:00 | C75: =IF('namerena data'!C65>0,'namerena data'!C65/1000,0) -> 0 | D75: 23.59 | E75: 27.7 | F75: 53.443 | G75: 0
B76: ='namerena data'!A66+('namerena data'!B66-1)/24 -> 2015-01-03T12:00:00 | C76: =IF('namerena data'!C66>0,'namerena data'!C66/1000,0) -> 0 | D76: 24.22 | E76: 27.7 | F76: 70.894 | G76: 0
B77: ='namerena data'!A67+('namerena data'!B67-1)/24 -> 2015-01-03T13:00:00 | C77: =IF('namerena data'!C67>0,'namerena data'!C67/1000,0) -> 0 | D77: 24 | E77: 27.7 | F77: 64.8 | G77: 0
B78: ='namerena data'!A68+('namerena data'!B68-1)/24 -> 2015-01-03T14:00:00 | C78: =IF('namerena data'!C68>0,'namerena data'!C68/1000,0) -> 0 | D78: 26.94 | E78: 27.7 | F78: 146.238 | G78: 0
B79: ='namerena data'!A69+('namerena data'!B69-1)/24 -> 2015-01-03T15:00:00 | C79: =IF('namerena data'!C69>0,'namerena data'!C69/1000,0) -> 0 | D79: 29.4 | E79: 27.7 | F79: 214.38 | G79: 0
B80: ='namerena data'!A70+('namerena data'!B70-1)/24 -> 2015-01-03T16:00:00 | C80: =IF('namerena data'!C70>0,'namerena data'!C70/1000,0) -> 0 | D80: 31.96 | E80: 27.7 | F80: 285.292 | G80: 0
B81: ='namerena data'!A71+('namerena data'!B71-1)/24 -> 2015-01-03T17:00:00 | C81: =IF('namerena data'!C71>0,'namerena data'!C71/1000,0) -> 0 | D81: 38.22 | E81: 27.7 | F81: =+IF(AND(ISNUMBER(D81),ISNUMBER(E81)),D81*E81-$F$13,0) -> 458.694 | G81: =+(C81*F81) -> 0
B82: ='namerena data'!A72+('namerena data'!B72-1)/24 -> 2015-01-03T18:00:00 | C82: =IF('namerena data'!C72>0,'namerena data'!C72/1000,0) -> 0 | D82: 40 | E82: 27.7 | F82: 508 | G82: 0
B83: ='namerena data'!A73+('namerena data'!B73-1)/24 -> 2015-01-03T19:00:00 | C83: =IF('namerena data'!C73>0,'namerena data'!C73/1000,0) -> 0 | D83: 36.4 | E83: 27.7 | F83: 408.28 | G83: 0
B84: ='namerena data'!A74+('namerena data'!B74-1)/24 -> 2015-01-03T20:00:00 | C84: =IF('namerena data'!C74>0,'namerena data'!C74/1000,0) -> 0 | D84: 29.7 | E84: 27.7 | F84: 222.69 | G84: 0
B85: ='namerena data'!A75+('namerena data'!B75-1)/24 -> 2015-01-03T21:00:00 | C85: =IF('namerena data'!C75>0,'namerena data'!C75/1000,0) -> 0 | D85: 25.3 | E85: 27.7 | F85: 100.81 | G85: 0
B86: ='namerena data'!A76+('namerena data'!B76-1)/24 -> 2015-01-03T22:00:00 | C86: =IF('namerena data'!C76>0,'namerena data'!C76/1000,0) -> 0 | D86: 20.29 | E86: 27.7 | F86: -37.967 | G86: 0
B87: ='namerena data'!A77+('namerena data'!B77-1)/24 -> 2015-01-03T23:00:00 | C87: =IF('namerena data'!C77>0,'namerena data'!C77/1000,0) -> 0 | D87: 12.54 | E87: 27.7 | F87: -252.642 | G87: 0
B88: ='namerena data'!A78+('namerena data'!B78-1)/24 -> 2015-01-04 | C88: =IF('namerena data'!C78>0,'namerena data'!C78/1000,0) -> 0 | D88: 5 | E88: 27.7 | F88: -461.5 | G88: 0
B89: ='namerena data'!A79+('namerena data'!B79-1)/24 -> 2015-01-04T01:00:00 | C89: =IF('namerena data'!C79>0,'namerena data'!C79/1000,0) -> 0 | D89: 3 | E89: 27.7 | F89: -516.9 | G89: 0
B90: ='namerena data'!A80+('namerena data'!B80-1)/24 -> 2015-01-04T02:00:00 | C90: =IF('namerena data'!C80>0,'namerena data'!C80/1000,0) -> 0 | D90: 2 | E90: 27.7 | F90: -544.6 | G90: 0
B91: ='namerena data'!A81+('namerena data'!B81-1)/24 -> 2015-01-04T03:00:00 | C91: =IF('namerena data'!C81>0,'namerena data'!C81/1000,0) -> 0 | D91: 0 | E91: 27.7 | F91: -600 | G91: 0
B92: ='namerena data'!A82+('namerena data'!B82-1)/24 -> 2015-01-04T04:00:00 | C92: =IF('namerena data'!C82>0,'namerena data'!C82/1000,0) -> 0 | D92: 0.01 | E92: 27.7 | F92: -599.723 | G92: 0
B93: ='namerena data'!A83+('namerena data'!B83-1)/24 -> 2015-01-04T05:00:00 | C93: =IF('namerena data'!C83>0,'namerena data'!C83/1000,0) -> 0 | D93: -1.45 | E93: 27.7 | F93: -640.165 | G93: 0
B94: ='namerena data'!A84+('namerena data'!B84-1)/24 -> 2015-01-04T06:00:00 | C94: =IF('namerena data'!C84>0,'namerena data'!C84/1000,0) -> 0 | D94: -2 | E94: 27.7 | F94: -655.4 | G94: 0
B95: ='namerena data'!A85+('namerena data'!B85-1)/24 -> 2015-01-04T07:00:00 | C95: =IF('namerena data'!C85>0,'namerena data'!C85/1000,0) -> 0 | D95: 0.82 | E95: 27.7 | F95: -577.286 | G95: 0
B96: ='namerena data'!A86+('namerena data'!B86-1)/24 -> 2015-01-04T08:00:00 | C96: =IF('namerena data'!C86>0,'namerena data'!C86/1000,0) -> 0 | D96: 6.5 | E96: 27.7 | F96: -419.95 | G96: 0
B97: ='namerena data'!A87+('namerena data'!B87-1)/24 -> 2015-01-04T09:00:00 | C97: =IF('namerena data'!C87>0,'namerena data'!C87/1000,0) -> 0 | D97: 12 | E97: 27.7 | F97: -267.6 | G97: 0
B98: ='namerena data'!A88+('namerena data'!B88-1)/24 -> 2015-01-04T10:00:00 | C98: =IF('namerena data'!C88>0,'namerena data'!C88/1000,0) -> 0 | D98: 14.5 | E98: 27.7 | F98: -198.35 | G98: 0
B99: ='namerena data'!A89+('namerena data'!B89-1)/24 -> 2015-01-04T11:00:00 | C99: =IF('namerena data'!C89>0,'namerena data'!C89/1000,0) -> 0 | D99: 18.44 | E99: 27.7 | F99: -89.212 | G99: 0
B100: ='namerena data'!A90+('namerena data'!B90-1)/24 -> 2015-01-04T12:00:00 | C100: =IF('namerena data'!C90>0,'namerena data'!C90/1000,0) -> 0 | D100: 17.36 | E100: 27.7 | F100: -119.128 | G100: 0
B101: ='namerena data'!A91+('namerena data'!B91-1)/24 -> 2015-01-04T13:00:00 | C101: =IF('namerena data'!C91>0,'namerena data'!C91/1000,0) -> 0 | D101: 14.76 | E101: 27.7 | F101: -191.148 | G101: 0
B102: ='namerena data'!A92+('namerena data'!B92-1)/24 -> 2015-01-04T14:00:00 | C102: =IF('namerena data'!C92>0,'namerena data'!C92/1000,0) -> 0 | D102: 14.7 | E102: 27.7 | F102: -192.81 | G102: 0
B103: ='namerena data'!A93+('namerena data'!B93-1)/24 -> 2015-01-04T15:00:00 | C103: =IF('namerena data'!C93>0,'namerena data'!C93/1000,0) -> 0 | D103: 16 | E103: 27.7 | F103: -156.8 | G103: 0
B104: ='namerena data'!A94+('namerena data'!B94-1)/24 -> 2015-01-04T16:00:00 | C104: =IF('namerena data'!C94>0,'namerena data'!C94/1000,0) -> 0 | D104: 19 | E104: 27.7 | F104: -73.7 | G104: 0
B105: ='namerena data'!A95+('namerena data'!B95-1)/24 -> 2015-01-04T17:00:00 | C105: =IF('namerena data'!C95>0,'namerena data'!C95/1000,0) -> 0 | D105: 26.32 | E105: 27.7 | F105: 129.064 | G105: 0
B106: ='namerena data'!A96+('namerena data'!B96-1)/24 -> 2015-01-04T18:00:00 | C106: =IF('namerena data'!C96>0,'namerena data'!C96/1000,0) -> 0 | D106: 29.62 | E106: 27.7 | F106: 220.474 | G106: 0
B107: ='namerena data'!A97+('namerena data'!B97-1)/24 -> 2015-01-04T19:00:00 | C107: =IF('namerena data'!C97>0,'namerena data'!C97/1000,0) -> 0 | D107: 29 | E107: 27.7 | F107: 203.3 | G107: 0
B108: ='namerena data'!A98+('namerena data'!B98-1)/24 -> 2015-01-04T20:00:00 | C108: =IF('namerena data'!C98>0,'namerena data'!C98/1000,0) -> 0 | D108: 24 | E108: 27.7 | F108: 64.8 | G108: 0
B109: ='namerena data'!A99+('namerena data'!B99-1)/24 -> 2015-01-04T21:00:00 | C109: =IF('namerena data'!C99>0,'namerena data'!C99/1000,0) -> 0 | D109: 21.5 | E109: 27.7 | F109: -4.45 | G109: 0
B110: ='namerena data'!A100+('namerena data'!B100-1)/24 -> 2015-01-04T22:00:00 | C110: =IF('namerena data'!C100>0,'namerena data'!C100/1000,0) -> 0 | D110: 21.8 | E110: 27.7 | F110: 3.86 | G110: 0
B111: ='namerena data'!A101+('namerena data'!B101-1)/24 -> 2015-01-04T23:00:00 | C111: =IF('namerena data'!C101>0,'namerena data'!C101/1000,0) -> 0 | D111: 15 | E111: 27.7 | F111: -184.5 | G111: 0
B112: ='namerena data'!A102+('namerena data'!B102-1)/24 -> 2015-01-05 | C112: =IF('namerena data'!C102>0,'namerena data'!C102/1000,0) -> 0 | D112: 19.22 | E112: 27.675 | F112: -68.0865 | G112: 0
B113: ='namerena data'!A103+('namerena data'!B103-1)/24 -> 2015-01-05T01:00:00 | C113: =IF('namerena data'!C103>0,'namerena data'!C103/1000,0) -> 0 | D113: 18 | E113: 27.675 | F113: -101.85 | G113: 0
B114: ='namerena data'!A104+('namerena data'!B104-1)/24 -> 2015-01-05T02:00:00 | C114: =IF('namerena data'!C104>0,'namerena data'!C104/1000,0) -> 0 | D114: 16.2 | E114: 27.675 | F114: -151.665 | G114: 0
B115: ='namerena data'!A105+('namerena data'!B105-1)/24 -> 2015-01-05T03:00:00 | C115: =IF('namerena data'!C105>0,'namerena data'!C105/1000,0) -> 0 | D115: 15.41 | E115: 27.675 | F115: -173.52825 | G115: 0
B116: ='namerena data'!A106+('namerena data'!B106-1)/24 -> 2015-01-05T04:00:00 | C116: =IF('namerena data'!C106>0,'namerena data'!C106/1000,0) -> 0 | D116: 16.33 | E116: 27.675 | F116: -148.06725 | G116: 0
B117: ='namerena data'!A107+('namerena data'!B107-1)/24 -> 2015-01-05T05:00:00 | C117: =IF('namerena data'!C107>0,'namerena data'!C107/1000,0) -> 0 | D117: 21.11 | E117: 27.675 | F117: -15.78075 | G117: 0
B118: ='namerena data'!A108+('namerena data'!B108-1)/24 -> 2015-01-05T06:00:00 | C118: =IF('namerena data'!C108>0,'namerena data'!C108/1000,0) -> 0 | D118: 29.25 | E118: 27.675 | F118: 209.49375 | G118: 0
B119: ='namerena data'!A109+('namerena data'!B109-1)/24 -> 2015-01-05T07:00:00 | C119: =IF('namerena data'!C109>0,'namerena data'!C109/1000,0) -> 0 | D119: 38.48 | E119: 27.675 | F119: 464.934 | G119: 0
B120: ='namerena data'!A110+('namerena data'!B110-1)/24 -> 2015-01-05T08:00:00 | C120: =IF('namerena data'!C110>0,'namerena data'!C110/1000,0) -> 0 | D120: 41.83 | E120: 27.675 | F120: 557.64525 | G120: 0
B121: ='namerena data'!A111+('namerena data'!B111-1)/24 -> 2015-01-05T09:00:00 | C121: =IF('namerena data'!C111>0,'namerena data'!C111/1000,0) -> 0 | D121: 44.9 | E121: 27.675 | F121: 642.6075 | G121: 0
B122: ='namerena data'!A112+('namerena data'!B112-1)/24 -> 2015-01-05T10:00:00 | C122: =IF('namerena data'!C112>0,'namerena data'!C112/1000,0) -> 0 | D122: 44.32 | E122: 27.675 | F122: 626.556 | G122: 0
B123: ='namerena data'!A113+('namerena data'!B113-1)/24 -> 2015-01-05T11:00:00 | C123: =IF('namerena data'!C113>0,'namerena data'!C113/1000,0) -> 0 | D123: 45 | E123: 27.675 | F123: 645.375 | G123: 0
B124: ='namerena data'!A114+('namerena data'!B114-1)/24 -> 2015-01-05T12:00:00 | C124: =IF('namerena data'!C114>0,'namerena data'!C114/1000,0) -> 0 | D124: 45.07 | E124: 27.675 | F124: 647.31225 | G124: 0
B125: ='namerena data'!A115+('namerena data'!B115-1)/24 -> 2015-01-05T13:00:00 | C125: =IF('namerena data'!C115>0,'namerena data'!C115/1000,0) -> 0 | D125: 46.62 | E125: 27.675 | F125: 690.2085 | G125: 0
B126: ='namerena data'!A116+('namerena data'!B116-1)/24 -> 2015-01-05T14:00:00 | C126: =IF('namerena data'!C116>0,'namerena data'!C116/1000,0) -> 0 | D126: 48.3 | E126: 27.675 | F126: 736.7025 | G126: 0
B127: ='namerena data'!A117+('namerena data'!B117-1)/24 -> 2015-01-05T15:00:00 | C127: =IF('namerena data'!C117>0,'namerena data'!C117/1000,0) -> 0 | D127: 48.8 | E127: 27.675 | F127: 750.54 | G127: 0
B128: ='namerena data'!A118+('namerena data'!B118-1)/24 -> 2015-01-05T16:00:00 | C128: =IF('namerena data'!C118>0,'namerena data'!C118/1000,0) -> 0 | D128: 49.23 | E128: 27.675 | F128: 762.44025 | G128: 0
B129: ='namerena data'!A119+('namerena data'!B119-1)/24 -> 2015-01-05T17:00:00 | C129: =IF('namerena data'!C119>0,'namerena data'!C119/1000,0) -> 0 | D129: 57 | E129: 27.675 | F129: 977.475 | G129: 0
B130: ='namerena data'!A120+('namerena data'!B120-1)/24 -> 2015-01-05T18:00:00 | C130: =IF('namerena data'!C120>0,'namerena data'!C120/1000,0) -> 0 | D130: 60.01 | E130: 27.675 | F130: 1060.77675 | G130: 0
B131: ='namerena data'!A121+('namerena data'!B121-1)/24 -> 2015-01-05T19:00:00 | C131: =IF('namerena data'!C121>0,'namerena data'!C121/1000,0) -> 0 | D131: 55.68 | E131: 27.675 | F131: 940.944 | G131: 0
B132: ='namerena data'!A122+('namerena data'!B122-1)/24 -> 2015-01-05T20:00:00 | C132: =IF('namerena data'!C122>0,'namerena data'!C122/1000,0) -> 0 | D132: 51 | E132: 27.675 | F132: 811.425 | G132: 0
B133: ='namerena data'!A123+('namerena data'!B123-1)/24 -> 2015-01-05T21:00:00 | C133: =IF('namerena data'!C123>0,'namerena data'!C123/1000,0) -> 0 | D133: 44.14 | E133: 27.675 | F133: 621.5745 | G133: 0
B134: ='namerena data'!A124+('namerena data'!B124-1)/24 -> 2015-01-05T22:00:00 | C134: =IF('namerena data'!C124>0,'namerena data'!C124/1000,0) -> 0 | D134: 37.37 | E134: 27.675 | F134: 434.21475 | G134: 0
B135: ='namerena data'!A125+('namerena data'!B125-1)/24 -> 2015-01-05T23:00:00 | C135: =IF('namerena data'!C125>0,'namerena data'!C125/1000,0) -> 0 | D135: 31.9 | E135: 27.675 | F135: 282.8325 | G135: 0
B136: ='namerena data'!A126+('namerena data'!B126-1)/24 -> 2015-01-06 | C136: =IF('namerena data'!C126>0,'namerena data'!C126/1000,0) -> 0 | D136: 30.66 | E136: 27.695 | F136: 249.1287 | G136: 0
B137: ='namerena data'!A127+('namerena data'!B127-1)/24 -> 2015-01-06T01:00:00 | C137: =IF('namerena data'!C127>0,'namerena data'!C127/1000,0) -> 0 | D137: 30.45 | E137: 27.695 | F137: 243.31275 | G137: 0
B138: ='namerena data'!A128+('namerena data'!B128-1)/24 -> 2015-01-06T02:00:00 | C138: =IF('namerena data'!C128>0,'namerena data'!C128/1000,0) -> 0 | D138: 28 | E138: 27.695 | F138: 175.46 | G138: 0
B139: ='namerena data'!A129+('namerena data'!B129-1)/24 -> 2015-01-06T03:00:00 | C139: =IF('namerena data'!C129>0,'namerena data'!C129/1000,0) -> 0 | D139: 27.4 | E139: 27.695 | F139: 158.843 | G139: 0
B140: ='namerena data'!A130+('namerena data'!B130-1)/24 -> 2015-01-06T04:00:00 | C140: =IF('namerena data'!C130>0,'namerena data'!C130/1000,0) -> 0 | D140: 28.25 | E140: 27.695 | F140: 182.38375 | G140: 0
B141: ='namerena data'!A131+('namerena data'!B131-1)/24 -> 2015-01-06T05:00:00 | C141: =IF('namerena data'!C131>0,'namerena data'!C131/1000,0) -> 0 | D141: 28.89 | E141: 27.695 | F141: 200.10855 | G141: 0
B142: ='namerena data'!A132+('namerena data'!B132-1)/24 -> 2015-01-06T06:00:00 | C142: =IF('namerena data'!C132>0,'namerena data'!C132/1000,0) -> 0 | D142: 33.75 | E142: 27.695 | F142: 334.70625 | G142: 0
B143: ='namerena data'!A133+('namerena data'!B133-1)/24 -> 2015-01-06T07:00:00 | C143: =IF('namerena data'!C133>0,'namerena data'!C133/1000,0) -> 0 | D143: 42.3 | E143: 27.695 | F143: 571.4985 | G143: 0
B144: ='namerena data'!A134+('namerena data'!B134-1)/24 -> 2015-01-06T08:00:00 | C144: =IF('namerena data'!C134>0,'namerena data'!C134/1000,0) -> 0 | D144: 45 | E144: 27.695 | F144: 646.275 | G144: 0
B145: ='namerena data'!A135+('namerena data'!B135-1)/24 -> 2015-01-06T09:00:00 | C145: =IF('namerena data'!C135>0,'namerena data'!C135/1000,0) -> 0 | D145: 43.2 | E145: 27.695 | F145: =+IF(AND(ISNUMBER(D145),ISNUMBER(E145)),D145*E145-$F$13,0) -> 596.424 | G145: =+(C145*F145) -> 0
B146: ='namerena data'!A136+('namerena data'!B136-1)/24 -> 2015-01-06T10:00:00 | C146: =IF('namerena data'!C136>0,'namerena data'!C136/1000,0) -> 0 | D146: 40.7 | E146: 27.695 | F146: 527.1865 | G146: 0
B147: ='namerena data'!A137+('namerena data'!B137-1)/24 -> 2015-01-06T11:00:00 | C147: =IF('namerena data'!C137>0,'namerena data'!C137/1000,0) -> 0 | D147: 40.36 | E147: 27.695 | F147: 517.7702 | G147: 0
B148: ='namerena data'!A138+('namerena data'!B138-1)/24 -> 2015-01-06T12:00:00 | C148: =IF('namerena data'!C138>0,'namerena data'!C138/1000,0) -> 0 | D148: 37.57 | E148: 27.695 | F148: 440.50115 | G148: 0
B149: ='namerena data'!A139+('namerena data'!B139-1)/24 -> 2015-01-06T13:00:00 | C149: =IF('namerena data'!C139>0,'namerena data'!C139/1000,0) -> 0 | D149: 37.91 | E149: 27.695 | F149: 449.91745 | G149: 0
B150: ='namerena data'!A140+('namerena data'!B140-1)/24 -> 2015-01-06T14:00:00 | C150: =IF('namerena data'!C140>0,'namerena data'!C140/1000,0) -> 0 | D150: 37.63 | E150: 27.695 | F150: 442.16285 | G150: 0
B151: ='namerena data'!A141+('namerena data'!B141-1)/24 -> 2015-01-06T15:00:00 | C151: =IF('namerena data'!C141>0,'namerena data'!C141/1000,0) -> 0 | D151: 39.37 | E151: 27.695 | F151: 490.35215 | G151: 0
B152: ='namerena data'!A142+('namerena data'!B142-1)/24 -> 2015-01-06T16:00:00 | C152: =IF('namerena data'!C142>0,'namerena data'!C142/1000,0) -> 0 | D152: 42.67 | E152: 27.695 | F152: 581.74565 | G152: 0
B153: ='namerena data'!A143+('namerena data'!B143-1)/24 -> 2015-01-06T17:00:00 | C153: =IF('namerena data'!C143>0,'namerena data'!C143/1000,0) -> 0 | D153: 49.74 | E153: 27.695 | F153: 777.5493 | G153: 0
B154: ='namerena data'!A144+('namerena data'!B144-1)/24 -> 2015-01-06T18:00:00 | C154: =IF('namerena data'!C144>0,'namerena data'!C144/1000,0) -> 0 | D154: 46.9 | E154: 27.695 | F154: 698.8955 | G154: 0
B155: ='namerena data'!A145+('namerena data'!B145-1)/24 -> 2015-01-06T19:00:00 | C155: =IF('namerena data'!C145>0,'namerena data'!C145/1000,0) -> 0 | D155: 40.4 | E155: 27.695 | F155: 518.878 | G155: 0
B156: ='namerena data'!A146+('namerena data'!B146-1)/24 -> 2015-01-06T20:00:00 | C156: =IF('namerena data'!C146>0,'namerena data'!C146/1000,0) -> 0 | D156: 36.15 | E156: 27.695 | F156: 401.17425 | G156: 0
B157: ='namerena data'!A147+('namerena data'!B147-1)/24 -> 2015-01-06T21:00:00 | C157: =IF('namerena data'!C147>0,'namerena data'!C147/1000,0) -> 0 | D157: 33.15 | E157: 27.695 | F157: 318.08925 | G157: 0
B158: ='namerena data'!A148+('namerena data'!B148-1)/24 -> 2015-01-06T22:00:00 | C158: =IF('namerena data'!C148>0,'namerena data'!C148/1000,0) -> 0 | D158: 29.86 | E158: 27.695 | F158: 226.9727 | G158: 0
B159: ='namerena data'!A149+('namerena data'!B149-1)/24 -> 2015-01-06T23:00:00 | C159: =IF('namerena data'!C149>0,'namerena data'!C149/1000,0) -> 0 | D159: 25.76 | E159: 27.695 | F159: 113.4232 | G159: 0
B160: ='namerena data'!A150+('namerena data'!B150-1)/24 -> 2015-01-07 | C160: =IF('namerena data'!C150>0,'namerena data'!C150/1000,0) -> 0 | D160: 27.57 | E160: 27.785 | F160: 166.03245 | G160: 0
B161: ='namerena data'!A151+('namerena data'!B151-1)/24 -> 2015-01-07T01:00:00 | C161: =IF('namerena data'!C151>0,'namerena data'!C151/1000,0) -> 0 | D161: 27 | E161: 27.785 | F161: 150.195 | G161: 0
B162: ='namerena data'!A152+('namerena data'!B152-1)/24 -> 2015-01-07T02:00:00 | C162: =IF('namerena data'!C152>0,'namerena data'!C152/1000,0) -> 0 | D162: 25.8 | E162: 27.785 | F162: 116.853 | G162: 0
B163: ='namerena data'!A153+('namerena data'!B153-1)/24 -> 2015-01-07T03:00:00 | C163: =IF('namerena data'!C153>0,'namerena data'!C153/1000,0) -> 0 | D163: 26.2 | E163: 27.785 | F163: 127.967 | G163: 0
B164: ='namerena data'!A154+('namerena data'!B154-1)/24 -> 2015-01-07T04:00:00 | C164: =IF('namerena data'!C154>0,'namerena data'!C154/1000,0) -> 0 | D164: 26.5 | E164: 27.785 | F164: 136.3025 | G164: 0
B165: ='namerena data'!A155+('namerena data'!B155-1)/24 -> 2015-01-07T05:00:00 | C165: =IF('namerena data'!C155>0,'namerena data'!C155/1000,0) -> 0 | D165: 27.13 | E165: 27.785 | F165: 153.80705 | G165: 0
B166: ='namerena data'!A156+('namerena data'!B156-1)/24 -> 2015-01-07T06:00:00 | C166: =IF('namerena data'!C156>0,'namerena data'!C156/1000,0) -> 0 | D166: 33.3 | E166: 27.785 | F166: 325.2405 | G166: 0
B167: ='namerena data'!A157+('namerena data'!B157-1)/24 -> 2015-01-07T07:00:00 | C167: =IF('namerena data'!C157>0,'namerena data'!C157/1000,0) -> 0 | D167: 43.3 | E167: 27.785 | F167: 603.0905 | G167: 0
B168: ='namerena data'!A158+('namerena data'!B158-1)/24 -> 2015-01-07T08:00:00 | C168: =IF('namerena data'!C158>0,'namerena data'!C158/1000,0) -> 0 | D168: 49.3 | E168: 27.785 | F168: 769.8005 | G168: 0
B169: ='namerena data'!A159+('namerena data'!B159-1)/24 -> 2015-01-07T09:00:00 | C169: =IF('namerena data'!C159>0,'namerena data'!C159/1000,0) -> 0 | D169: 50.45 | E169: 27.785 | F169: 801.75325 | G169: 0
B170: ='namerena data'!A160+('namerena data'!B160-1)/24 -> 2015-01-07T10:00:00 | C170: =IF('namerena data'!C160>0,'namerena data'!C160/1000,0) -> 0 | D170: 49.06 | E170: 27.785 | F170: 763.1321 | G170: 0
B171: ='namerena data'!A161+('namerena data'!B161-1)/24 -> 2015-01-07T11:00:00 | C171: =IF('namerena data'!C161>0,'namerena data'!C161/1000,0) -> 0 | D171: 49 | E171: 27.785 | F171: 761.465 | G171: 0
B172: ='namerena data'!A162+('namerena data'!B162-1)/24 -> 2015-01-07T12:00:00 | C172: =IF('namerena data'!C162>0,'namerena data'!C162/1000,0) -> 0 | D172: 48.21 | E172: 27.785 | F172: 739.51485 | G172: 0
B173: ='namerena data'!A163+('namerena data'!B163-1)/24 -> 2015-01-07T13:00:00 | C173: =IF('namerena data'!C163>0,'namerena data'!C163/1000,0) -> 0 | D173: 47.5 | E173: 27.785 | F173: 719.7875 | G173: 0
B174: ='namerena data'!A164+('namerena data'!B164-1)/24 -> 2015-01-07T14:00:00 | C174: =IF('namerena data'!C164>0,'namerena data'!C164/1000,0) -> 0 | D174: 46.4 | E174: 27.785 | F174: 689.224 | G174: 0
B175: ='namerena data'!A165+('namerena data'!B165-1)/24 -> 2015-01-07T15:00:00 | C175: =IF('namerena data'!C165>0,'namerena data'!C165/1000,0) -> 0 | D175: 45.4 | E175: 27.785 | F175: 661.439 | G175: 0
B176: ='namerena data'!A166+('namerena data'!B166-1)/24 -> 2015-01-07T16:00:00 | C176: =IF('namerena data'!C166>0,'namerena data'!C166/1000,0) -> 0 | D176: 48.44 | E176: 27.785 | F176: 745.9054 | G176: 0
B177: ='namerena data'!A167+('namerena data'!B167-1)/24 -> 2015-01-07T17:00:00 | C177: =IF('namerena data'!C167>0,'namerena data'!C167/1000,0) -> 0 | D177: 53 | E177: 27.785 | F177: 872.605 | G177: 0
B178: ='namerena data'!A168+('namerena data'!B168-1)/24 -> 2015-01-07T18:00:00 | C178: =IF('namerena data'!C168>0,'namerena data'!C168/1000,0) -> 0 | D178: 50 | E178: 27.785 | F178: 789.25 | G178: 0
B179: ='namerena data'!A169+('namerena data'!B169-1)/24 -> 2015-01-07T19:00:00 | C179: =IF('namerena data'!C169>0,'namerena data'!C169/1000,0) -> 0 | D179: 43.2 | E179: 27.785 | F179: 600.312 | G179: 0
B180: ='namerena data'!A170+('namerena data'!B170-1)/24 -> 2015-01-07T20:00:00 | C180: =IF('namerena data'!C170>0,'namerena data'!C170/1000,0) -> 0 | D180: 36 | E180: 27.785 | F180: 400.26 | G180: 0
B181: ='namerena data'!A171+('namerena data'!B171-1)/24 -> 2015-01-07T21:00:00 | C181: =IF('namerena data'!C171>0,'namerena data'!C171/1000,0) -> 0 | D181: 31 | E181: 27.785 | F181: 261.335 | G181: 0
B182: ='namerena data'!A172+('namerena data'!B172-1)/24 -> 2015-01-07T22:00:00 | C182: =IF('namerena data'!C172>0,'namerena data'!C172/1000,0) -> 0 | D182: 26.2 | E182: 27.785 | F182: 127.967 | G182: 0
B183: ='namerena data'!A173+('namerena data'!B173-1)/24 -> 2015-01-07T23:00:00 | C183: =IF('namerena data'!C173>0,'namerena data'!C173/1000,0) -> 0 | D183: 23 | E183: 27.785 | F183: 39.055 | G183: 0
B184: ='namerena data'!A174+('namerena data'!B174-1)/24 -> 2015-01-08 | C184: =IF('namerena data'!C174>0,'namerena data'!C174/1000,0) -> 0 | D184: 21.6 | E184: 27.865 | F184: 1.884 | G184: 0
B185: ='namerena data'!A175+('namerena data'!B175-1)/24 -> 2015-01-08T01:00:00 | C185: =IF('namerena data'!C175>0,'namerena data'!C175/1000,0) -> 0 | D185: 19 | E185: 27.865 | F185: -70.565 | G185: 0
B186: ='namerena data'!A176+('namerena data'!B176-1)/24 -> 2015-01-08T02:00:00 | C186: =IF('namerena data'!C176>0,'namerena data'!C176/1000,0) -> 0 | D186: 14.19 | E186: 27.865 | F186: -204.59565 | G186: 0
B187: ='namerena data'!A177+('namerena data'!B177-1)/24 -> 2015-01-08T03:00:00 | C187: =IF('namerena data'!C177>0,'namerena data'!C177/1000,0) -> 0 | D187: 14.01 | E187: 27.865 | F187: -209.61135 | G187: 0
B188: ='namerena data'!A178+('namerena data'!B178-1)/24 -> 2015-01-08T04:00:00 | C188: =IF('namerena data'!C178>0,'namerena data'!C178/1000,0) -> 0 | D188: 15.23 | E188: 27.865 | F188: -175.61605 | G188: 0
B189: ='namerena data'!A179+('namerena data'!B179-1)/24 -> 2015-01-08T05:00:00 | C189: =IF('namerena data'!C179>0,'namerena data'!C179/1000,0) -> 0 | D189: 16.74 | E189: 27.865 | F189: -133.5399 | G189: 0
B190: ='namerena data'!A180+('namerena data'!B180-1)/24 -> 2015-01-08T06:00:00 | C190: =IF('namerena data'!C180>0,'namerena data'!C180/1000,0) -> 0 | D190: 24.1 | E190: 27.865 | F190: 71.5465 | G190: 0
B191: ='namerena data'!A181+('namerena data'!B181-1)/24 -> 2015-01-08T07:00:00 | C191: =IF('namerena data'!C181>0,'namerena data'!C181/1000,0) -> 0 | D191: 31 | E191: 27.865 | F191: 263.815 | G191: 0
B192: ='namerena data'!A182+('namerena data'!B182-1)/24 -> 2015-01-08T08:00:00 | C192: =IF('namerena data'!C182>0,'namerena data'!C182/1000,0) -> 0 | D192: 33.4 | E192: 27.865 | F192: 330.691 | G192: 0
B193: ='namerena data'!A183+('namerena data'!B183-1)/24 -> 2015-01-08T09:00:00 | C193: =IF('namerena data'!C183>0,'namerena data'!C183/1000,0) -> 0 | D193: 33.88 | E193: 27.865 | F193: 344.0662 | G193: 0
B194: ='namerena data'!A184+('namerena data'!B184-1)/24 -> 2015-01-08T10:00:00 | C194: =IF('namerena data'!C184>0,'namerena data'!C184/1000,0) -> 0 | D194: 34.35 | E194: 27.865 | F194: 357.16275 | G194: 0
B195: ='namerena data'!A185+('namerena data'!B185-1)/24 -> 2015-01-08T11:00:00 | C195: =IF('namerena data'!C185>0,'namerena data'!C185/1000,0) -> 0 | D195: 35.7 | E195: 27.865 | F195: 394.7805 | G195: 0
B196: ='namerena data'!A186+('namerena data'!B186-1)/24 -> 2015-01-08T12:00:00 | C196: =IF('namerena data'!C186>0,'namerena data'!C186/1000,0) -> 0 | D196: 35.1 | E196: 27.865 | F196: 378.0615 | G196: 0
B197: ='namerena data'!A187+('namerena data'!B187-1)/24 -> 2015-01-08T13:00:00 | C197: =IF('namerena data'!C187>0,'namerena data'!C187/1000,0) -> 0 | D197: 35.2 | E197: 27.865 | F197: 380.848 | G197: 0
B198: ='namerena data'!A188+('namerena data'!B188-1)/24 -> 2015-01-08T14:00:00 | C198: =IF('namerena data'!C188>0,'namerena data'!C188/1000,0) -> 0 | D198: 35.5 | E198: 27.865 | F198: 389.2075 | G198: 0
B199: ='namerena data'!A189+('namerena data'!B189-1)/24 -> 2015-01-08T15:00:00 | C199: =IF('namerena data'!C189>0,'namerena data'!C189/1000,0) -> 0 | D199: 34.7 | E199: 27.865 | F199: 366.9155 | G199: 0
B200: ='namerena data'!A190+('namerena data'!B190-1)/24 -> 2015-01-08T16:00:00 | C200: =IF('namerena data'!C190>0,'namerena data'!C190/1000,0) -> 0 | D200: 35.7 | E200: 27.865 | F200: 394.7805 | G200: 0
B201: ='namerena data'!A191+('namerena data'!B191-1)/24 -> 2015-01-08T17:00:00 | C201: =IF('namerena data'!C191>0,'namerena data'!C191/1000,0) -> 0 | D201: 39.3 | E201: 27.865 | F201: 495.0945 | G201: 0
B202: ='namerena data'!A192+('namerena data'!B192-1)/24 -> 2015-01-08T18:00:00 | C202: =IF('namerena data'!C192>0,'namerena data'!C192/1000,0) -> 0 | D202: 36.71 | E202: 27.865 | F202: 422.92415 | G202: 0
B203: ='namerena data'!A193+('namerena data'!B193-1)/24 -> 2015-01-08T19:00:00 | C203: =IF('namerena data'!C193>0,'namerena data'!C193/1000,0) -> 0 | D203: 34.3 | E203: 27.865 | F203: 355.7695 | G203: 0
B204: ='namerena data'!A194+('namerena data'!B194-1)/24 -> 2015-01-08T20:00:00 | C204: =IF('namerena data'!C194>0,'namerena data'!C194/1000,0) -> 0 | D204: 27.69 | E204: 27.865 | F204: 171.58185 | G204: 0
B205: ='namerena data'!A195+('namerena data'!B195-1)/24 -> 2015-01-08T21:00:00 | C205: =IF('namerena data'!C195>0,'namerena data'!C195/1000,0) -> 0 | D205: 23.62 | E205: 27.865 | F205: 58.1713 | G205: 0
B206: ='namerena data'!A196+('namerena data'!B196-1)/24 -> 2015-01-08T22:00:00 | C206: =IF('namerena data'!C196>0,'namerena data'!C196/1000,0) -> 0 | D206: 20 | E206: 27.865 | F206: -42.7 | G206: 0
B207: ='namerena data'!A197+('namerena data'!B197-1)/24 -> 2015-01-08T23:00:00 | C207: =IF('namerena data'!C197>0,'namerena data'!C197/1000,0) -> 0 | D207: 13.97 | E207: 27.865 | F207: -210.72595 | G207: 0
... 1967 more rows

Sheet Data_Graf (hidden)
A1: MĚSÍC | E1: ="FAKTURACE VÝROBY "&UPPER(TEXT(E4,"MMMM RRRR")) ->  | F1: ="FAKTURACE VÝROBY- 72 HODIN ("&TEXT(E4,"DD.MM.RRRR HH:MM")&" - "&TEXT(E74,"DD.MM.RRRR HH:MM")&")" -> 
A2: =fakturace!B15 -> Datum | B2: =fakturace!C15 -> měření [MWh] | C2: =fakturace!F15 -> cenový tarif [Kc/MWh] | E2: D3
A3: =OFFSET(fakturace!B16,fakturace!#REF!,0) ->  | B3: =OFFSET(fakturace!C16,fakturace!#REF!,0) ->  | C3: =OFFSET(fakturace!F16,fakturace!#REF!,0) ->  | E3: Datum | F3: mereni v MWh | G3: cenový tarif v Kc/MWh
A4: =OFFSET(fakturace!B17,fakturace!#REF!,0) ->  | B4: =OFFSET(fakturace!C17,fakturace!#REF!,0) ->  | C4: =OFFSET(fakturace!F17,fakturace!#REF!,0) ->  | E4: =OFFSET(fakturace!B16,fakturace!#REF!,0) ->  | F4: =OFFSET(fakturace!C16,fakturace!#REF!,0) ->  | G4: =OFFSET(fakturace!F16,fakturace!#REF!,0) -> 
A5: =OFFSET(fakturace!B18,fakturace!#REF!,0) ->  | B5: =OFFSET(fakturace!C18,fakturace!#REF!,0) ->  | C5: =OFFSET(fakturace!F18,fakturace!#REF!,0) ->  | E5: =OFFSET(fakturace!B17,fakturace!#REF!,0) ->  | F5: =OFFSET(fakturace!C17,fakturace!#REF!,0) ->  | G5: =OFFSET(fakturace!F17,fakturace!#REF!,0) -> 
A6: =OFFSET(fakturace!B19,fakturace!#REF!,0) ->  | B6: =OFFSET(fakturace!C19,fakturace!#REF!,0) ->  | C6: =OFFSET(fakturace!F19,fakturace!#REF!,0) ->  | E6: =OFFSET(fakturace!B18,fakturace!#REF!,0) ->  | F6: =OFFSET(fakturace!C18,fakturace!#REF!,0) ->  | G6: =OFFSET(fakturace!F18,fakturace!#REF!,0) -> 
A7: =OFFSET(fakturace!B20,fakturace!#REF!,0) ->  | B7: =OFFSET(fakturace!C20,fakturace!#REF!,0) ->  | C7: =OFFSET(fakturace!F20,fakturace!#REF!,0) ->  | E7: =OFFSET(fakturace!B19,fakturace!#REF!,0) ->  | F7: =OFFSET(fakturace!C19,fakturace!#REF!,0) ->  | G7: =OFFSET(fakturace!F19,fakturace!#REF!,0) -> 
A8: =OFFSET(fakturace!B21,fakturace!#REF!,0) ->  | B8: =OFFSET(fakturace!C21,fakturace!#REF!,0) ->  | C8: =OFFSET(fakturace!F21,fakturace!#REF!,0) ->  | E8: =OFFSET(fakturace!B20,fakturace!#REF!,0) ->  | F8: =OFFSET(fakturace!C20,fakturace!#REF!,0) ->  | G8: =OFFSET(fakturace!F20,fakturace!#REF!,0) -> 
A9: =OFFSET(fakturace!B22,fakturace!#REF!,0) ->  | B9: =OFFSET(fakturace!C22,fakturace!#REF!,0) ->  | C9: =OFFSET(fakturace!F22,fakturace!#REF!,0) ->  | E9: =OFFSET(fakturace!B21,fakturace!#REF!,0) ->  | F9: =OFFSET(fakturace!C21,fakturace!#REF!,0) ->  | G9: =OFFSET(fakturace!F21,fakturace!#REF!,0) -> 
A10: =OFFSET(fakturace!B23,fakturace!#REF!,0) ->  | B10: =OFFSET(fakturace!C23,fakturace!#REF!,0) ->  | C10: =OFFSET(fakturace!F23,fakturace!#REF!,0) ->  | E10: =OFFSET(fakturace!B22,fakturace!#REF!,0) ->  | F10: =OFFSET(fakturace!C22,fakturace!#REF!,0) ->  | G10: =OFFSET(fakturace!F22,fakturace!#REF!,0) -> 
A11: =OFFSET(fakturace!B24,fakturace!#REF!,0) ->  | B11: =OFFSET(fakturace!C24,fakturace!#REF!,0) ->  | C11: =OFFSET(fakturace!F24,fakturace!#REF!,0) ->  | E11: =OFFSET(fakturace!B23,fakturace!#REF!,0) ->  | F11: =OFFSET(fakturace!C23,fakturace!#REF!,0) ->  | G11: =OFFSET(fakturace!F23,fakturace!#REF!,0) -> 
A12: =OFFSET(fakturace!B25,fakturace!#REF!,0) ->  | B12: =OFFSET(fakturace!C25,fakturace!#REF!,0) ->  | C12: =OFFSET(fakturace!F25,fakturace!#REF!,0) ->  | E12: =OFFSET(fakturace!B24,fakturace!#REF!,0) ->  | F12: =OFFSET(fakturace!C24,fakturace!#REF!,0) ->  | G12: =OFFSET(fakturace!F24,fakturace!#REF!,0) -> 
A13: =OFFSET(fakturace!B26,fakturace!#REF!,0) ->  | B13: =OFFSET(fakturace!C26,fakturace!#REF!,0) ->  | C13: =OFFSET(fakturace!F26,fakturace!#REF!,0) ->  | E13: =OFFSET(fakturace!B25,fakturace!#REF!,0) ->  | F13: =OFFSET(fakturace!C25,fakturace!#REF!,0) ->  | G13: =OFFSET(fakturace!F25,fakturace!#REF!,0) -> 
A14: =OFFSET(fakturace!B27,fakturace!#REF!,0) ->  | B14: =OFFSET(fakturace!C27,fakturace!#REF!,0) ->  | C14: =OFFSET(fakturace!F27,fakturace!#REF!,0) ->  | E14: =OFFSET(fakturace!B26,fakturace!#REF!,0) ->  | F14: =OFFSET(fakturace!C26,fakturace!#REF!,0) ->  | G14: =OFFSET(fakturace!F26,fakturace!#REF!,0) -> 
A15: =OFFSET(fakturace!B28,fakturace!#REF!,0) ->  | B15: =OFFSET(fakturace!C28,fakturace!#REF!,0) ->  | C15: =OFFSET(fakturace!F28,fakturace!#REF!,0) ->  | E15: =OFFSET(fakturace!B27,fakturace!#REF!,0) ->  | F15: =OFFSET(fakturace!C27,fakturace!#REF!,0) ->  | G15: =OFFSET(fakturace!F27,fakturace!#REF!,0) -> 
A16: =OFFSET(fakturace!B29,fakturace!#REF!,0) ->  | B16: =OFFSET(fakturace!C29,fakturace!#REF!,0) ->  | C16: =OFFSET(fakturace!F29,fakturace!#REF!,0) ->  | E16: =OFFSET(fakturace!B28,fakturace!#REF!,0) ->  | F16: =OFFSET(fakturace!C28,fakturace!#REF!,0) ->  | G16: =OFFSET(fakturace!F28,fakturace!#REF!,0) -> 
A17: =OFFSET(fakturace!B30,fakturace!#REF!,0) ->  | B17: =OFFSET(fakturace!C30,fakturace!#REF!,0) ->  | C17: =OFFSET(fakturace!F30,fakturace!#REF!,0) ->  | E17: =OFFSET(fakturace!B29,fakturace!#REF!,0) ->  | F17: =OFFSET(fakturace!C29,fakturace!#REF!,0) ->  | G17: =OFFSET(fakturace!F29,fakturace!#REF!,0) -> 
A18: =OFFSET(fakturace!B31,fakturace!#REF!,0) ->  | B18: =OFFSET(fakturace!C31,fakturace!#REF!,0) ->  | C18: =OFFSET(fakturace!F31,fakturace!#REF!,0) ->  | E18: =OFFSET(fakturace!B30,fakturace!#REF!,0) ->  | F18: =OFFSET(fakturace!C30,fakturace!#REF!,0) ->  | G18: =OFFSET(fakturace!F30,fakturace!#REF!,0) -> 
A19: =OFFSET(fakturace!B32,fakturace!#REF!,0) ->  | B19: =OFFSET(fakturace!C32,fakturace!#REF!,0) ->  | C19: =OFFSET(fakturace!F32,fakturace!#REF!,0) ->  | E19: =OFFSET(fakturace!B31,fakturace!#REF!,0) ->  | F19: =OFFSET(fakturace!C31,fakturace!#REF!,0) ->  | G19: =OFFSET(fakturace!F31,fakturace!#REF!,0) -> 
A20: =OFFSET(fakturace!B33,fakturace!#REF!,0) ->  | B20: =OFFSET(fakturace!C33,fakturace!#REF!,0) ->  | C20: =OFFSET(fakturace!F33,fakturace!#REF!,0) ->  | E20: =OFFSET(fakturace!B32,fakturace!#REF!,0) ->  | F20: =OFFSET(fakturace!C32,fakturace!#REF!,0) ->  | G20: =OFFSET(fakturace!F32,fakturace!#REF!,0) -> 
A21: =OFFSET(fakturace!B34,fakturace!#REF!,0) ->  | B21: =OFFSET(fakturace!C34,fakturace!#REF!,0) ->  | C21: =OFFSET(fakturace!F34,fakturace!#REF!,0) ->  | E21: =OFFSET(fakturace!B33,fakturace!#REF!,0) ->  | F21: =OFFSET(fakturace!C33,fakturace!#REF!,0) ->  | G21: =OFFSET(fakturace!F33,fakturace!#REF!,0) -> 
A22: =OFFSET(fakturace!B35,fakturace!#REF!,0) ->  | B22: =OFFSET(fakturace!C35,fakturace!#REF!,0) ->  | C22: =OFFSET(fakturace!F35,fakturace!#REF!,0) ->  | E22: =OFFSET(fakturace!B34,fakturace!#REF!,0) ->  | F22: =OFFSET(fakturace!C34,fakturace!#REF!,0) ->  | G22: =OFFSET(fakturace!F34,fakturace!#REF!,0) -> 
A23: =OFFSET(fakturace!B36,fakturace!#REF!,0) ->  | B23: =OFFSET(fakturace!C36,fakturace!#REF!,0) ->  | C23: =OFFSET(fakturace!F36,fakturace!#REF!,0) ->  | E23: =OFFSET(fakturace!B35,fakturace!#REF!,0) ->  | F23: =OFFSET(fakturace!C35,fakturace!#REF!,0) ->  | G23: =OFFSET(fakturace!F35,fakturace!#REF!,0) -> 
A24: =OFFSET(fakturace!B37,fakturace!#REF!,0) ->  | B24: =OFFSET(fakturace!C37,fakturace!#REF!,0) ->  | C24: =OFFSET(fakturace!F37,fakturace!#REF!,0) ->  | E24: =OFFSET(fakturace!B36,fakturace!#REF!,0) ->  | F24: =OFFSET(fakturace!C36,fakturace!#REF!,0) ->  | G24: =OFFSET(fakturace!F36,fakturace!#REF!,0) -> 
A25: =OFFSET(fakturace!B38,fakturace!#REF!,0) ->  | B25: =OFFSET(fakturace!C38,fakturace!#REF!,0) ->  | C25: =OFFSET(fakturace!F38,fakturace!#REF!,0) ->  | E25: =OFFSET(fakturace!B37,fakturace!#REF!,0) ->  | F25: =OFFSET(fakturace!C37,fakturace!#REF!,0) ->  | G25: =OFFSET(fakturace!F37,fakturace!#REF!,0) -> 
A26: =OFFSET(fakturace!B39,fakturace!#REF!,0) ->  | B26: =OFFSET(fakturace!C39,fakturace!#REF!,0) ->  | C26: =OFFSET(fakturace!F39,fakturace!#REF!,0) ->  | E26: =OFFSET(fakturace!B38,fakturace!#REF!,0) ->  | F26: =OFFSET(fakturace!C38,fakturace!#REF!,0) ->  | G26: =OFFSET(fakturace!F38,fakturace!#REF!,0) -> 
A27: =OFFSET(fakturace!B40,fakturace!#REF!,0) ->  | B27: =OFFSET(fakturace!C40,fakturace!#REF!,0) ->  | C27: =OFFSET(fakturace!F40,fakturace!#REF!,0) ->  | E27: =OFFSET(fakturace!B39,fakturace!#REF!,0) ->  | F27: =OFFSET(fakturace!C39,fakturace!#REF!,0) ->  | G27: =OFFSET(fakturace!F39,fakturace!#REF!,0) -> 
A28: =OFFSET(fakturace!B41,fakturace!#REF!,0) ->  | B28: =OFFSET(fakturace!C41,fakturace!#REF!,0) ->  | C28: =OFFSET(fakturace!F41,fakturace!#REF!,0) ->  | E28: =OFFSET(fakturace!B40,fakturace!#REF!,0) ->  | F28: =OFFSET(fakturace!C40,fakturace!#REF!,0) ->  | G28: =OFFSET(fakturace!F40,fakturace!#REF!,0) -> 
A29: =OFFSET(fakturace!B42,fakturace!#REF!,0) ->  | B29: =OFFSET(fakturace!C42,fakturace!#REF!,0) ->  | C29: =OFFSET(fakturace!F42,fakturace!#REF!,0) ->  | E29: =OFFSET(fakturace!B41,fakturace!#REF!,0) ->  | F29: =OFFSET(fakturace!C41,fakturace!#REF!,0) ->  | G29: =OFFSET(fakturace!F41,fakturace!#REF!,0) -> 
A30: =OFFSET(fakturace!B43,fakturace!#REF!,0) ->  | B30: =OFFSET(fakturace!C43,fakturace!#REF!,0) ->  | C30: =OFFSET(fakturace!F43,fakturace!#REF!,0) ->  | E30: =OFFSET(fakturace!B42,fakturace!#REF!,0) ->  | F30: =OFFSET(fakturace!C42,fakturace!#REF!,0) ->  | G30: =OFFSET(fakturace!F42,fakturace!#REF!,0) -> 
A31: =OFFSET(fakturace!B44,fakturace!#REF!,0) ->  | B31: =OFFSET(fakturace!C44,fakturace!#REF!,0) ->  | C31: =OFFSET(fakturace!F44,fakturace!#REF!,0) ->  | E31: =OFFSET(fakturace!B43,fakturace!#REF!,0) ->  | F31: =OFFSET(fakturace!C43,fakturace!#REF!,0) ->  | G31: =OFFSET(fakturace!F43,fakturace!#REF!,0) -> 
A32: =OFFSET(fakturace!B45,fakturace!#REF!,0) ->  | B32: =OFFSET(fakturace!C45,fakturace!#REF!,0) ->  | C32: =OFFSET(fakturace!F45,fakturace!#REF!,0) ->  | E32: =OFFSET(fakturace!B44,fakturace!#REF!,0) ->  | F32: =OFFSET(fakturace!C44,fakturace!#REF!,0) ->  | G32: =OFFSET(fakturace!F44,fakturace!#REF!,0) -> 
A33: =OFFSET(fakturace!B46,fakturace!#REF!,0) ->  | B33: =OFFSET(fakturace!C46,fakturace!#REF!,0) ->  | C33: =OFFSET(fakturace!F46,fakturace!#REF!,0) ->  | E33: =OFFSET(fakturace!B45,fakturace!#REF!,0) ->  | F33: =OFFSET(fakturace!C45,fakturace!#REF!,0) ->  | G33: =OFFSET(fakturace!F45,fakturace!#REF!,0) -> 
A34: =OFFSET(fakturace!B47,fakturace!#REF!,0) ->  | B34: =OFFSET(fakturace!C47,fakturace!#REF!,0) ->  | C34: =OFFSET(fakturace!F47,fakturace!#REF!,0) ->  | E34: =OFFSET(fakturace!B46,fakturace!#REF!,0) ->  | F34: =OFFSET(fakturace!C46,fakturace!#REF!,0) ->  | G34: =OFFSET(fakturace!F46,fakturace!#REF!,0) -> 
A35: =OFFSET(fakturace!B48,fakturace!#REF!,0) ->  | B35: =OFFSET(fakturace!C48,fakturace!#REF!,0) ->  | C35: =OFFSET(fakturace!F48,fakturace!#REF!,0) ->  | E35: =OFFSET(fakturace!B47,fakturace!#REF!,0) ->  | F35: =OFFSET(fakturace!C47,fakturace!#REF!,0) ->  | G35: =OFFSET(fakturace!F47,fakturace!#REF!,0) -> 
A36: =OFFSET(fakturace!B49,fakturace!#REF!,0) ->  | B36: =OFFSET(fakturace!C49,fakturace!#REF!,0) ->  | C36: =OFFSET(fakturace!F49,fakturace!#REF!,0) ->  | E36: =OFFSET(fakturace!B48,fakturace!#REF!,0) ->  | F36: =OFFSET(fakturace!C48,fakturace!#REF!,0) ->  | G36: =OFFSET(fakturace!F48,fakturace!#REF!,0) -> 
A37: =OFFSET(fakturace!B50,fakturace!#REF!,0) ->  | B37: =OFFSET(fakturace!C50,fakturace!#REF!,0) ->  | C37: =OFFSET(fakturace!F50,fakturace!#REF!,0) ->  | E37: =OFFSET(fakturace!B49,fakturace!#REF!,0) ->  | F37: =OFFSET(fakturace!C49,fakturace!#REF!,0) ->  | G37: =OFFSET(fakturace!F49,fakturace!#REF!,0) -> 
A38: =OFFSET(fakturace!B51,fakturace!#REF!,0) ->  | B38: =OFFSET(fakturace!C51,fakturace!#REF!,0) ->  | C38: =OFFSET(fakturace!F51,fakturace!#REF!,0) ->  | E38: =OFFSET(fakturace!B50,fakturace!#REF!,0) ->  | F38: =OFFSET(fakturace!C50,fakturace!#REF!,0) ->  | G38: =OFFSET(fakturace!F50,fakturace!#REF!,0) -> 
A39: =OFFSET(fakturace!B52,fakturace!#REF!,0) ->  | B39: =OFFSET(fakturace!C52,fakturace!#REF!,0) ->  | C39: =OFFSET(fakturace!F52,fakturace!#REF!,0) ->  | E39: =OFFSET(fakturace!B51,fakturace!#REF!,0) ->  | F39: =OFFSET(fakturace!C51,fakturace!#REF!,0) ->  | G39: =OFFSET(fakturace!F51,fakturace!#REF!,0) -> 
A40: =OFFSET(fakturace!B53,fakturace!#REF!,0) ->  | B40: =OFFSET(fakturace!C53,fakturace!#REF!,0) ->  | C40: =OFFSET(fakturace!F53,fakturace!#REF!,0) ->  | E40: =OFFSET(fakturace!B52,fakturace!#REF!,0) ->  | F40: =OFFSET(fakturace!C52,fakturace!#REF!,0) ->  | G40: =OFFSET(fakturace!F52,fakturace!#REF!,0) -> 
A41: =OFFSET(fakturace!B54,fakturace!#REF!,0) ->  | B41: =OFFSET(fakturace!C54,fakturace!#REF!,0) ->  | C41: =OFFSET(fakturace!F54,fakturace!#REF!,0) ->  | E41: =OFFSET(fakturace!B53,fakturace!#REF!,0) ->  | F41: =OFFSET(fakturace!C53,fakturace!#REF!,0) ->  | G41: =OFFSET(fakturace!F53,fakturace!#REF!,0) -> 
A42: =OFFSET(fakturace!B55,fakturace!#REF!,0) ->  | B42: =OFFSET(fakturace!C55,fakturace!#REF!,0) ->  | C42: =OFFSET(fakturace!F55,fakturace!#REF!,0) ->  | E42: =OFFSET(fakturace!B54,fakturace!#REF!,0) ->  | F42: =OFFSET(fakturace!C54,fakturace!#REF!,0) ->  | G42: =OFFSET(fakturace!F54,fakturace!#REF!,0) -> 
A43: =OFFSET(fakturace!B56,fakturace!#REF!,0) ->  | B43: =OFFSET(fakturace!C56,fakturace!#REF!,0) ->  | C43: =OFFSET(fakturace!F56,fakturace!#REF!,0) ->  | E43: =OFFSET(fakturace!B55,fakturace!#REF!,0) ->  | F43: =OFFSET(fakturace!C55,fakturace!#REF!,0) ->  | G43: =OFFSET(fakturace!F55,fakturace!#REF!,0) -> 
A44: =OFFSET(fakturace!B57,fakturace!#REF!,0) ->  | B44: =OFFSET(fakturace!C57,fakturace!#REF!,0) ->  | C44: =OFFSET(fakturace!F57,fakturace!#REF!,0) ->  | E44: =OFFSET(fakturace!B56,fakturace!#REF!,0) ->  | F44: =OFFSET(fakturace!C56,fakturace!#REF!,0) ->  | G44: =OFFSET(fakturace!F56,fakturace!#REF!,0) -> 
A45: =OFFSET(fakturace!B58,fakturace!#REF!,0) ->  | B45: =OFFSET(fakturace!C58,fakturace!#REF!,0) ->  | C45: =OFFSET(fakturace!F58,fakturace!#REF!,0) ->  | E45: =OFFSET(fakturace!B57,fakturace!#REF!,0) ->  | F45: =OFFSET(fakturace!C57,fakturace!#REF!,0) ->  | G45: =OFFSET(fakturace!F57,fakturace!#REF!,0) -> 
A46: =OFFSET(fakturace!B59,fakturace!#REF!,0) ->  | B46: =OFFSET(fakturace!C59,fakturace!#REF!,0) ->  | C46: =OFFSET(fakturace!F59,fakturace!#REF!,0) ->  | E46: =OFFSET(fakturace!B58,fakturace!#REF!,0) ->  | F46: =OFFSET(fakturace!C58,fakturace!#REF!,0) ->  | G46: =OFFSET(fakturace!F58,fakturace!#REF!,0) -> 
A47: =OFFSET(fakturace!B60,fakturace!#REF!,0) ->  | B47: =OFFSET(fakturace!C60,fakturace!#REF!,0) ->  | C47: =OFFSET(fakturace!F60,fakturace!#REF!,0) ->  | E47: =OFFSET(fakturace!B59,fakturace!#REF!,0) ->  | F47: =OFFSET(fakturace!C59,fakturace!#REF!,0) ->  | G47: =OFFSET(fakturace!F59,fakturace!#REF!,0) -> 
A48: =OFFSET(fakturace!B61,fakturace!#REF!,0) ->  | B48: =OFFSET(fakturace!C61,fakturace!#REF!,0) ->  | C48: =OFFSET(fakturace!F61,fakturace!#REF!,0) ->  | E48: =OFFSET(fakturace!B60,fakturace!#REF!,0) ->  | F48: =OFFSET(fakturace!C60,fakturace!#REF!,0) ->  | G48: =OFFSET(fakturace!F60,fakturace!#REF!,0) -> 
A49: =OFFSET(fakturace!B62,fakturace!#REF!,0) ->  | B49: =OFFSET(fakturace!C62,fakturace!#REF!,0) ->  | C49: =OFFSET(fakturace!F62,fakturace!#REF!,0) ->  | E49: =OFFSET(fakturace!B61,fakturace!#REF!,0) ->  | F49: =OFFSET(fakturace!C61,fakturace!#REF!,0) ->  | G49: =OFFSET(fakturace!F61,fakturace!#REF!,0) -> 
A50: =OFFSET(fakturace!B63,fakturace!#REF!,0) ->  | B50: =OFFSET(fakturace!C63,fakturace!#REF!,0) ->  | C50: =OFFSET(fakturace!F63,fakturace!#REF!,0) ->  | E50: =OFFSET(fakturace!B62,fakturace!#REF!,0) ->  | F50: =OFFSET(fakturace!C62,fakturace!#REF!,0) ->  | G50: =OFFSET(fakturace!F62,fakturace!#REF!,0) -> 
A51: =OFFSET(fakturace!B64,fakturace!#REF!,0) ->  | B51: =OFFSET(fakturace!C64,fakturace!#REF!,0) ->  | C51: =OFFSET(fakturace!F64,fakturace!#REF!,0) ->  | E51: =OFFSET(fakturace!B63,fakturace!#REF!,0) ->  | F51: =OFFSET(fakturace!C63,fakturace!#REF!,0) ->  | G51: =OFFSET(fakturace!F63,fakturace!#REF!,0) -> 
A52: =OFFSET(fakturace!B65,fakturace!#REF!,0) ->  | B52: =OFFSET(fakturace!C65,fakturace!#REF!,0) ->  | C52: =OFFSET(fakturace!F65,fakturace!#REF!,0) ->  | E52: =OFFSET(fakturace!B64,fakturace!#REF!,0) ->  | F52: =OFFSET(fakturace!C64,fakturace!#REF!,0) ->  | G52: =OFFSET(fakturace!F64,fakturace!#REF!,0) -> 
A53: =OFFSET(fakturace!B66,fakturace!#REF!,0) ->  | B53: =OFFSET(fakturace!C66,fakturace!#REF!,0) ->  | C53: =OFFSET(fakturace!F66,fakturace!#REF!,0) ->  | E53: =OFFSET(fakturace!B65,fakturace!#REF!,0) ->  | F53: =OFFSET(fakturace!C65,fakturace!#REF!,0) ->  | G53: =OFFSET(fakturace!F65,fakturace!#REF!,0) -> 
A54: =OFFSET(fakturace!B67,fakturace!#REF!,0) ->  | B54: =OFFSET(fakturace!C67,fakturace!#REF!,0) ->  | C54: =OFFSET(fakturace!F67,fakturace!#REF!,0) ->  | E54: =OFFSET(fakturace!B66,fakturace!#REF!,0) ->  | F54: =OFFSET(fakturace!C66,fakturace!#REF!,0) ->  | G54: =OFFSET(fakturace!F66,fakturace!#REF!,0) -> 
A55: =OFFSET(fakturace!B68,fakturace!#REF!,0) ->  | B55: =OFFSET(fakturace!C68,fakturace!#REF!,0) ->  | C55: =OFFSET(fakturace!F68,fakturace!#REF!,0) ->  | E55: =OFFSET(fakturace!B67,fakturace!#REF!,0) ->  | F55: =OFFSET(fakturace!C67,fakturace!#REF!,0) ->  | G55: =OFFSET(fakturace!F67,fakturace!#REF!,0) -> 
A56: =OFFSET(fakturace!B69,fakturace!#REF!,0) ->  | B56: =OFFSET(fakturace!C69,fakturace!#REF!,0) ->  | C56: =OFFSET(fakturace!F69,fakturace!#REF!,0) ->  | E56: =OFFSET(fakturace!B68,fakturace!#REF!,0) ->  | F56: =OFFSET(fakturace!C68,fakturace!#REF!,0) ->  | G56: =OFFSET(fakturace!F68,fakturace!#REF!,0) -> 
A57: =OFFSET(fakturace!B70,fakturace!#REF!,0) ->  | B57: =OFFSET(fakturace!C70,fakturace!#REF!,0) ->  | C57: =OFFSET(fakturace!F70,fakturace!#REF!,0) ->  | E57: =OFFSET(fakturace!B69,fakturace!#REF!,0) ->  | F57: =OFFSET(fakturace!C69,fakturace!#REF!,0) ->  | G57: =OFFSET(fakturace!F69,fakturace!#REF!,0) -> 
A58: =OFFSET(fakturace!B71,fakturace!#REF!,0) ->  | B58: =OFFSET(fakturace!C71,fakturace!#REF!,0) ->  | C58: =OFFSET(fakturace!F71,fakturace!#REF!,0) ->  | E58: =OFFSET(fakturace!B70,fakturace!#REF!,0) ->  | F58: =OFFSET(fakturace!C70,fakturace!#REF!,0) ->  | G58: =OFFSET(fakturace!F70,fakturace!#REF!,0) -> 
A59: =OFFSET(fakturace!B72,fakturace!#REF!,0) ->  | B59: =OFFSET(fakturace!C72,fakturace!#REF!,0) ->  | C59: =OFFSET(fakturace!F72,fakturace!#REF!,0) ->  | E59: =OFFSET(fakturace!B71,fakturace!#REF!,0) ->  | F59: =OFFSET(fakturace!C71,fakturace!#REF!,0) ->  | G59: =OFFSET(fakturace!F71,fakturace!#REF!,0) -> 
A60: =OFFSET(fakturace!B73,fakturace!#REF!,0) ->  | B60: =OFFSET(fakturace!C73,fakturace!#REF!,0) ->  | C60: =OFFSET(fakturace!F73,fakturace!#REF!,0) ->  | E60: =OFFSET(fakturace!B72,fakturace!#REF!,0) ->  | F60: =OFFSET(fakturace!C72,fakturace!#REF!,0) ->  | G60: =OFFSET(fakturace!F72,fakturace!#REF!,0) -> 
A61: =OFFSET(fakturace!B74,fakturace!#REF!,0) ->  | B61: =OFFSET(fakturace!C74,fakturace!#REF!,0) ->  | C61: =OFFSET(fakturace!F74,fakturace!#REF!,0) ->  | E61: =OFFSET(fakturace!B73,fakturace!#REF!,0) ->  | F61: =OFFSET(fakturace!C73,fakturace!#REF!,0) ->  | G61: =OFFSET(fakturace!F73,fakturace!#REF!,0) -> 
A62: =OFFSET(fakturace!B75,fakturace!#REF!,0) ->  | B62: =OFFSET(fakturace!C75,fakturace!#REF!,0) ->  | C62: =OFFSET(fakturace!F75,fakturace!#REF!,0) ->  | E62: =OFFSET(fakturace!B74,fakturace!#REF!,0) ->  | F62: =OFFSET(fakturace!C74,fakturace!#REF!,0) ->  | G62: =OFFSET(fakturace!F74,fakturace!#REF!,0) -> 
A63: =OFFSET(fakturace!B76,fakturace!#REF!,0) ->  | B63: =OFFSET(fakturace!C76,fakturace!#REF!,0) ->  | C63: =OFFSET(fakturace!F76,fakturace!#REF!,0) ->  | E63: =OFFSET(fakturace!B75,fakturace!#REF!,0) ->  | F63: =OFFSET(fakturace!C75,fakturace!#REF!,0) ->  | G63: =OFFSET(fakturace!F75,fakturace!#REF!,0) -> 
A64: =OFFSET(fakturace!B77,fakturace!#REF!,0) ->  | B64: =OFFSET(fakturace!C77,fakturace!#REF!,0) ->  | C64: =OFFSET(fakturace!F77,fakturace!#REF!,0) ->  | E64: =OFFSET(fakturace!B76,fakturace!#REF!,0) ->  | F64: =OFFSET(fakturace!C76,fakturace!#REF!,0) ->  | G64: =OFFSET(fakturace!F76,fakturace!#REF!,0) -> 
A65: =OFFSET(fakturace!B78,fakturace!#REF!,0) ->  | B65: =OFFSET(fakturace!C78,fakturace!#REF!,0) ->  | C65: =OFFSET(fakturace!F78,fakturace!#REF!,0) ->  | E65: =OFFSET(fakturace!B77,fakturace!#REF!,0) ->  | F65: =OFFSET(fakturace!C77,fakturace!#REF!,0) ->  | G65: =OFFSET(fakturace!F77,fakturace!#REF!,0) -> 
A66: =OFFSET(fakturace!B79,fakturace!#REF!,0) ->  | B66: =OFFSET(fakturace!C79,fakturace!#REF!,0) ->  | C66: =OFFSET(fakturace!F79,fakturace!#REF!,0) ->  | E66: =OFFSET(fakturace!B78,fakturace!#REF!,0) ->  | F66: =OFFSET(fakturace!C78,fakturace!#REF!,0) ->  | G66: =OFFSET(fakturace!F78,fakturace!#REF!,0) -> 
A67: =OFFSET(fakturace!B80,fakturace!#REF!,0) ->  | B67: =OFFSET(fakturace!C80,fakturace!#REF!,0) ->  | C67: =OFFSET(fakturace!F80,fakturace!#REF!,0) ->  | E67: =OFFSET(fakturace!B79,fakturace!#REF!,0) ->  | F67: =OFFSET(fakturace!C79,fakturace!#REF!,0) ->  | G67: =OFFSET(fakturace!F79,fakturace!#REF!,0) -> 
A68: =OFFSET(fakturace!B81,fakturace!#REF!,0) ->  | B68: =OFFSET(fakturace!C81,fakturace!#REF!,0) ->  | C68: =OFFSET(fakturace!F81,fakturace!#REF!,0) ->  | E68: =OFFSET(fakturace!B80,fakturace!#REF!,0) ->  | F68: =OFFSET(fakturace!C80,fakturace!#REF!,0) ->  | G68: =OFFSET(fakturace!F80,fakturace!#REF!,0) -> 
A69: =OFFSET(fakturace!B82,fakturace!#REF!,0) ->  | B69: =OFFSET(fakturace!C82,fakturace!#REF!,0) ->  | C69: =OFFSET(fakturace!F82,fakturace!#REF!,0) ->  | E69: =OFFSET(fakturace!B81,fakturace!#REF!,0) ->  | F69: =OFFSET(fakturace!C81,fakturace!#REF!,0) ->  | G69: =OFFSET(fakturace!F81,fakturace!#REF!,0) -> 
A70: =OFFSET(fakturace!B83,fakturace!#REF!,0) ->  | B70: =OFFSET(fakturace!C83,fakturace!#REF!,0) ->  | C70: =OFFSET(fakturace!F83,fakturace!#REF!,0) ->  | E70: =OFFSET(fakturace!B82,fakturace!#REF!,0) ->  | F70: =OFFSET(fakturace!C82,fakturace!#REF!,0) ->  | G70: =OFFSET(fakturace!F82,fakturace!#REF!,0) -> 
A71: =OFFSET(fakturace!B84,fakturace!#REF!,0) ->  | B71: =OFFSET(fakturace!C84,fakturace!#REF!,0) ->  | C71: =OFFSET(fakturace!F84,fakturace!#REF!,0) ->  | E71: =OFFSET(fakturace!B83,fakturace!#REF!,0) ->  | F71: =OFFSET(fakturace!C83,fakturace!#REF!,0) ->  | G71: =OFFSET(fakturace!F83,fakturace!#REF!,0) -> 
A72: =OFFSET(fakturace!B85,fakturace!#REF!,0) ->  | B72: =OFFSET(fakturace!C85,fakturace!#REF!,0) ->  | C72: =OFFSET(fakturace!F85,fakturace!#REF!,0) ->  | E72: =OFFSET(fakturace!B84,fakturace!#REF!,0) ->  | F72: =OFFSET(fakturace!C84,fakturace!#REF!,0) ->  | G72: =OFFSET(fakturace!F84,fakturace!#REF!,0) -> 
A73: =OFFSET(fakturace!B86,fakturace!#REF!,0) ->  | B73: =OFFSET(fakturace!C86,fakturace!#REF!,0) ->  | C73: =OFFSET(fakturace!F86,fakturace!#REF!,0) ->  | E73: =OFFSET(fakturace!B85,fakturace!#REF!,0) ->  | F73: =OFFSET(fakturace!C85,fakturace!#REF!,0) ->  | G73: =OFFSET(fakturace!F85,fakturace!#REF!,0) -> 
A74: =OFFSET(fakturace!B87,fakturace!#REF!,0) ->  | B74: =OFFSET(fakturace!C87,fakturace!#REF!,0) ->  | C74: =OFFSET(fakturace!F87,fakturace!#REF!,0) ->  | E74: =OFFSET(fakturace!B86,fakturace!#REF!,0) ->  | F74: =OFFSET(fakturace!C86,fakturace!#REF!,0) ->  | G74: =OFFSET(fakturace!F86,fakturace!#REF!,0) -> 
A75: =OFFSET(fakturace!B88,fakturace!#REF!,0) ->  | B75: =OFFSET(fakturace!C88,fakturace!#REF!,0) ->  | C75: =OFFSET(fakturace!F88,fakturace!#REF!,0) -> 
A76: =OFFSET(fakturace!B89,fakturace!#REF!,0) ->  | B76: =OFFSET(fakturace!C89,fakturace!#REF!,0) ->  | C76: =OFFSET(fakturace!F89,fakturace!#REF!,0) -> 
A77: =OFFSET(fakturace!B90,fakturace!#REF!,0) ->  | B77: =OFFSET(fakturace!C90,fakturace!#REF!,0) ->  | C77: =OFFSET(fakturace!F90,fakturace!#REF!,0) -> 
A78: =OFFSET(fakturace!B91,fakturace!#REF!,0) ->  | B78: =OFFSET(fakturace!C91,fakturace!#REF!,0) ->  | C78: =OFFSET(fakturace!F91,fakturace!#REF!,0) -> 
A79: =OFFSET(fakturace!B92,fakturace!#REF!,0) ->  | B79: =OFFSET(fakturace!C92,fakturace!#REF!,0) ->  | C79: =OFFSET(fakturace!F92,fakturace!#REF!,0) -> 
A80: =OFFSET(fakturace!B93,fakturace!#REF!,0) ->  | B80: =OFFSET(fakturace!C93,fakturace!#REF!,0) ->  | C80: =OFFSET(fakturace!F93,fakturace!#REF!,0) -> 
A81: =OFFSET(fakturace!B94,fakturace!#REF!,0) ->  | B81: =OFFSET(fakturace!C94,fakturace!#REF!,0) ->  | C81: =OFFSET(fakturace!F94,fakturace!#REF!,0) -> 
A82: =OFFSET(fakturace!B95,fakturace!#REF!,0) ->  | B82: =OFFSET(fakturace!C95,fakturace!#REF!,0) ->  | C82: =OFFSET(fakturace!F95,fakturace!#REF!,0) -> 
A83: =OFFSET(fakturace!B96,fakturace!#REF!,0) ->  | B83: =OFFSET(fakturace!C96,fakturace!#REF!,0) ->  | C83: =OFFSET(fakturace!F96,fakturace!#REF!,0) -> 
A84: =OFFSET(fakturace!B97,fakturace!#REF!,0) ->  | B84: =OFFSET(fakturace!C97,fakturace!#REF!,0) ->  | C84: =OFFSET(fakturace!F97,fakturace!#REF!,0) -> 
A85: =OFFSET(fakturace!B98,fakturace!#REF!,0) ->  | B85: =OFFSET(fakturace!C98,fakturace!#REF!,0) ->  | C85: =OFFSET(fakturace!F98,fakturace!#REF!,0) -> 
A86: =OFFSET(fakturace!B99,fakturace!#REF!,0) ->  | B86: =OFFSET(fakturace!C99,fakturace!#REF!,0) ->  | C86: =OFFSET(fakturace!F99,fakturace!#REF!,0) -> 
A87: =OFFSET(fakturace!B100,fakturace!#REF!,0) ->  | B87: =OFFSET(fakturace!C100,fakturace!#REF!,0) ->  | C87: =OFFSET(fakturace!F100,fakturace!#REF!,0) -> 
A88: =OFFSET(fakturace!B101,fakturace!#REF!,0) ->  | B88: =OFFSET(fakturace!C101,fakturace!#REF!,0) ->  | C88: =OFFSET(fakturace!F101,fakturace!#REF!,0) -> 
A89: =OFFSET(fakturace!B102,fakturace!#REF!,0) ->  | B89: =OFFSET(fakturace!C102,fakturace!#REF!,0) ->  | C89: =OFFSET(fakturace!F102,fakturace!#REF!,0) -> 
A90: =OFFSET(fakturace!B103,fakturace!#REF!,0) ->  | B90: =OFFSET(fakturace!C103,fakturace!#REF!,0) ->  | C90: =OFFSET(fakturace!F103,fakturace!#REF!,0) -> 
A91: =OFFSET(fakturace!B104,fakturace!#REF!,0) ->  | B91: =OFFSET(fakturace!C104,fakturace!#REF!,0) ->  | C91: =OFFSET(fakturace!F104,fakturace!#REF!,0) -> 
A92: =OFFSET(fakturace!B105,fakturace!#REF!,0) ->  | B92: =OFFSET(fakturace!C105,fakturace!#REF!,0) ->  | C92: =OFFSET(fakturace!F105,fakturace!#REF!,0) -> 
A93: =OFFSET(fakturace!B106,fakturace!#REF!,0) ->  | B93: =OFFSET(fakturace!C106,fakturace!#REF!,0) ->  | C93: =OFFSET(fakturace!F106,fakturace!#REF!,0) -> 
A94: =OFFSET(fakturace!B107,fakturace!#REF!,0) ->  | B94: =OFFSET(fakturace!C107,fakturace!#REF!,0) ->  | C94: =OFFSET(fakturace!F107,fakturace!#REF!,0) -> 
A95: =OFFSET(fakturace!B108,fakturace!#REF!,0) ->  | B95: =OFFSET(fakturace!C108,fakturace!#REF!,0) ->  | C95: =OFFSET(fakturace!F108,fakturace!#REF!,0) -> 
A96: =OFFSET(fakturace!B109,fakturace!#REF!,0) ->  | B96: =OFFSET(fakturace!C109,fakturace!#REF!,0) ->  | C96: =OFFSET(fakturace!F109,fakturace!#REF!,0) -> 
A97: =OFFSET(fakturace!B110,fakturace!#REF!,0) ->  | B97: =OFFSET(fakturace!C110,fakturace!#REF!,0) ->  | C97: =OFFSET(fakturace!F110,fakturace!#REF!,0) -> 
A98: =OFFSET(fakturace!B111,fakturace!#REF!,0) ->  | B98: =OFFSET(fakturace!C111,fakturace!#REF!,0) ->  | C98: =OFFSET(fakturace!F111,fakturace!#REF!,0) -> 
A99: =OFFSET(fakturace!B112,fakturace!#REF!,0) ->  | B99: =OFFSET(fakturace!C112,fakturace!#REF!,0) ->  | C99: =OFFSET(fakturace!F112,fakturace!#REF!,0) -> 
A100: =OFFSET(fakturace!B113,fakturace!#REF!,0) ->  | B100: =OFFSET(fakturace!C113,fakturace!#REF!,0) ->  | C100: =OFFSET(fakturace!F113,fakturace!#REF!,0) -> 
A101: =OFFSET(fakturace!B114,fakturace!#REF!,0) ->  | B101: =OFFSET(fakturace!C114,fakturace!#REF!,0) ->  | C101: =OFFSET(fakturace!F114,fakturace!#REF!,0) -> 
A102: =OFFSET(fakturace!B115,fakturace!#REF!,0) ->  | B102: =OFFSET(fakturace!C115,fakturace!#REF!,0) ->  | C102: =OFFSET(fakturace!F115,fakturace!#REF!,0) -> 
A103: =OFFSET(fakturace!B116,fakturace!#REF!,0) ->  | B103: =OFFSET(fakturace!C116,fakturace!#REF!,0) ->  | C103: =OFFSET(fakturace!F116,fakturace!#REF!,0) -> 
A104: =OFFSET(fakturace!B117,fakturace!#REF!,0) ->  | B104: =OFFSET(fakturace!C117,fakturace!#REF!,0) ->  | C104: =OFFSET(fakturace!F117,fakturace!#REF!,0) -> 
A105: =OFFSET(fakturace!B118,fakturace!#REF!,0) ->  | B105: =OFFSET(fakturace!C118,fakturace!#REF!,0) ->  | C105: =OFFSET(fakturace!F118,fakturace!#REF!,0) -> 
A106: =OFFSET(fakturace!B119,fakturace!#REF!,0) ->  | B106: =OFFSET(fakturace!C119,fakturace!#REF!,0) ->  | C106: =OFFSET(fakturace!F119,fakturace!#REF!,0) -> 
A107: =OFFSET(fakturace!B120,fakturace!#REF!,0) ->  | B107: =OFFSET(fakturace!C120,fakturace!#REF!,0) ->  | C107: =OFFSET(fakturace!F120,fakturace!#REF!,0) -> 
A108: =OFFSET(fakturace!B121,fakturace!#REF!,0) ->  | B108: =OFFSET(fakturace!C121,fakturace!#REF!,0) ->  | C108: =OFFSET(fakturace!F121,fakturace!#REF!,0) -> 
A109: =OFFSET(fakturace!B122,fakturace!#REF!,0) ->  | B109: =OFFSET(fakturace!C122,fakturace!#REF!,0) ->  | C109: =OFFSET(fakturace!F122,fakturace!#REF!,0) -> 
A110: =OFFSET(fakturace!B123,fakturace!#REF!,0) ->  | B110: =OFFSET(fakturace!C123,fakturace!#REF!,0) ->  | C110: =OFFSET(fakturace!F123,fakturace!#REF!,0) -> 
A111: =OFFSET(fakturace!B124,fakturace!#REF!,0) ->  | B111: =OFFSET(fakturace!C124,fakturace!#REF!,0) ->  | C111: =OFFSET(fakturace!F124,fakturace!#REF!,0) -> 
A112: =OFFSET(fakturace!B125,fakturace!#REF!,0) ->  | B112: =OFFSET(fakturace!C125,fakturace!#REF!,0) ->  | C112: =OFFSET(fakturace!F125,fakturace!#REF!,0) -> 
A113: =OFFSET(fakturace!B126,fakturace!#REF!,0) ->  | B113: =OFFSET(fakturace!C126,fakturace!#REF!,0) ->  | C113: =OFFSET(fakturace!F126,fakturace!#REF!,0) -> 
A114: =OFFSET(fakturace!B127,fakturace!#REF!,0) ->  | B114: =OFFSET(fakturace!C127,fakturace!#REF!,0) ->  | C114: =OFFSET(fakturace!F127,fakturace!#REF!,0) -> 
A115: =OFFSET(fakturace!B128,fakturace!#REF!,0) ->  | B115: =OFFSET(fakturace!C128,fakturace!#REF!,0) ->  | C115: =OFFSET(fakturace!F128,fakturace!#REF!,0) -> 
A116: =OFFSET(fakturace!B129,fakturace!#REF!,0) ->  | B116: =OFFSET(fakturace!C129,fakturace!#REF!,0) ->  | C116: =OFFSET(fakturace!F129,fakturace!#REF!,0) -> 
A117: =OFFSET(fakturace!B130,fakturace!#REF!,0) ->  | B117: =OFFSET(fakturace!C130,fakturace!#REF!,0) ->  | C117: =OFFSET(fakturace!F130,fakturace!#REF!,0) -> 
A118: =OFFSET(fakturace!B131,fakturace!#REF!,0) ->  | B118: =OFFSET(fakturace!C131,fakturace!#REF!,0) ->  | C118: =OFFSET(fakturace!F131,fakturace!#REF!,0) -> 
A119: =OFFSET(fakturace!B132,fakturace!#REF!,0) ->  | B119: =OFFSET(fakturace!C132,fakturace!#REF!,0) ->  | C119: =OFFSET(fakturace!F132,fakturace!#REF!,0) -> 
A120: =OFFSET(fakturace!B133,fakturace!#REF!,0) ->  | B120: =OFFSET(fakturace!C133,fakturace!#REF!,0) ->  | C120: =OFFSET(fakturace!F133,fakturace!#REF!,0) -> 
A121: =OFFSET(fakturace!B134,fakturace!#REF!,0) ->  | B121: =OFFSET(fakturace!C134,fakturace!#REF!,0) ->  | C121: =OFFSET(fakturace!F134,fakturace!#REF!,0) -> 
A122: =OFFSET(fakturace!B135,fakturace!#REF!,0) ->  | B122: =OFFSET(fakturace!C135,fakturace!#REF!,0) ->  | C122: =OFFSET(fakturace!F135,fakturace!#REF!,0) -> 
A123: =OFFSET(fakturace!B136,fakturace!#REF!,0) ->  | B123: =OFFSET(fakturace!C136,fakturace!#REF!,0) ->  | C123: =OFFSET(fakturace!F136,fakturace!#REF!,0) -> 
A124: =OFFSET(fakturace!B137,fakturace!#REF!,0) ->  | B124: =OFFSET(fakturace!C137,fakturace!#REF!,0) ->  | C124: =OFFSET(fakturace!F137,fakturace!#REF!,0) -> 
A125: =OFFSET(fakturace!B138,fakturace!#REF!,0) ->  | B125: =OFFSET(fakturace!C138,fakturace!#REF!,0) ->  | C125: =OFFSET(fakturace!F138,fakturace!#REF!,0) -> 
A126: =OFFSET(fakturace!B139,fakturace!#REF!,0) ->  | B126: =OFFSET(fakturace!C139,fakturace!#REF!,0) ->  | C126: =OFFSET(fakturace!F139,fakturace!#REF!,0) -> 
A127: =OFFSET(fakturace!B140,fakturace!#REF!,0) ->  | B127: =OFFSET(fakturace!C140,fakturace!#REF!,0) ->  | C127: =OFFSET(fakturace!F140,fakturace!#REF!,0) -> 
A128: =OFFSET(fakturace!B141,fakturace!#REF!,0) ->  | B128: =OFFSET(fakturace!C141,fakturace!#REF!,0) ->  | C128: =OFFSET(fakturace!F141,fakturace!#REF!,0) -> 
A129: =OFFSET(fakturace!B142,fakturace!#REF!,0) ->  | B129: =OFFSET(fakturace!C142,fakturace!#REF!,0) ->  | C129: =OFFSET(fakturace!F142,fakturace!#REF!,0) -> 
A130: =OFFSET(fakturace!B143,fakturace!#REF!,0) ->  | B130: =OFFSET(fakturace!C143,fakturace!#REF!,0) ->  | C130: =OFFSET(fakturace!F143,fakturace!#REF!,0) -> 
A131: =OFFSET(fakturace!B144,fakturace!#REF!,0) ->  | B131: =OFFSET(fakturace!C144,fakturace!#REF!,0) ->  | C131: =OFFSET(fakturace!F144,fakturace!#REF!,0) -> 
A132: =OFFSET(fakturace!B145,fakturace!#REF!,0) ->  | B132: =OFFSET(fakturace!C145,fakturace!#REF!,0) ->  | C132: =OFFSET(fakturace!F145,fakturace!#REF!,0) -> 
A133: =OFFSET(fakturace!B146,fakturace!#REF!,0) ->  | B133: =OFFSET(fakturace!C146,fakturace!#REF!,0) ->  | C133: =OFFSET(fakturace!F146,fakturace!#REF!,0) -> 
A134: =OFFSET(fakturace!B147,fakturace!#REF!,0) ->  | B134: =OFFSET(fakturace!C147,fakturace!#REF!,0) ->  | C134: =OFFSET(fakturace!F147,fakturace!#REF!,0) -> 
A135: =OFFSET(fakturace!B148,fakturace!#REF!,0) ->  | B135: =OFFSET(fakturace!C148,fakturace!#REF!,0) ->  | C135: =OFFSET(fakturace!F148,fakturace!#REF!,0) -> 
A136: =OFFSET(fakturace!B149,fakturace!#REF!,0) ->  | B136: =OFFSET(fakturace!C149,fakturace!#REF!,0) ->  | C136: =OFFSET(fakturace!F149,fakturace!#REF!,0) -> 
A137: =OFFSET(fakturace!B150,fakturace!#REF!,0) ->  | B137: =OFFSET(fakturace!C150,fakturace!#REF!,0) ->  | C137: =OFFSET(fakturace!F150,fakturace!#REF!,0) -> 
A138: =OFFSET(fakturace!B151,fakturace!#REF!,0) ->  | B138: =OFFSET(fakturace!C151,fakturace!#REF!,0) ->  | C138: =OFFSET(fakturace!F151,fakturace!#REF!,0) -> 
A139: =OFFSET(fakturace!B152,fakturace!#REF!,0) ->  | B139: =OFFSET(fakturace!C152,fakturace!#REF!,0) ->  | C139: =OFFSET(fakturace!F152,fakturace!#REF!,0) -> 
A140: =OFFSET(fakturace!B153,fakturace!#REF!,0) ->  | B140: =OFFSET(fakturace!C153,fakturace!#REF!,0) ->  | C140: =OFFSET(fakturace!F153,fakturace!#REF!,0) -> 
A141: =OFFSET(fakturace!B154,fakturace!#REF!,0) ->  | B141: =OFFSET(fakturace!C154,fakturace!#REF!,0) ->  | C141: =OFFSET(fakturace!F154,fakturace!#REF!,0) -> 
A142: =OFFSET(fakturace!B155,fakturace!#REF!,0) ->  | B142: =OFFSET(fakturace!C155,fakturace!#REF!,0) ->  | C142: =OFFSET(fakturace!F155,fakturace!#REF!,0) -> 
A143: =OFFSET(fakturace!B156,fakturace!#REF!,0) ->  | B143: =OFFSET(fakturace!C156,fakturace!#REF!,0) ->  | C143: =OFFSET(fakturace!F156,fakturace!#REF!,0) -> 
A144: =OFFSET(fakturace!B157,fakturace!#REF!,0) ->  | B144: =OFFSET(fakturace!C157,fakturace!#REF!,0) ->  | C144: =OFFSET(fakturace!F157,fakturace!#REF!,0) -> 
A145: =OFFSET(fakturace!B158,fakturace!#REF!,0) ->  | B145: =OFFSET(fakturace!C158,fakturace!#REF!,0) ->  | C145: =OFFSET(fakturace!F158,fakturace!#REF!,0) -> 
A146: =OFFSET(fakturace!B159,fakturace!#REF!,0) ->  | B146: =OFFSET(fakturace!C159,fakturace!#REF!,0) ->  | C146: =OFFSET(fakturace!F159,fakturace!#REF!,0) -> 
A147: =OFFSET(fakturace!B160,fakturace!#REF!,0) ->  | B147: =OFFSET(fakturace!C160,fakturace!#REF!,0) ->  | C147: =OFFSET(fakturace!F160,fakturace!#REF!,0) -> 
A148: =OFFSET(fakturace!B161,fakturace!#REF!,0) ->  | B148: =OFFSET(fakturace!C161,fakturace!#REF!,0) ->  | C148: =OFFSET(fakturace!F161,fakturace!#REF!,0) -> 
A149: =OFFSET(fakturace!B162,fakturace!#REF!,0) ->  | B149: =OFFSET(fakturace!C162,fakturace!#REF!,0) ->  | C149: =OFFSET(fakturace!F162,fakturace!#REF!,0) -> 
A150: =OFFSET(fakturace!B163,fakturace!#REF!,0) ->  | B150: =OFFSET(fakturace!C163,fakturace!#REF!,0) ->  | C150: =OFFSET(fakturace!F163,fakturace!#REF!,0) -> 
A151: =OFFSET(fakturace!B164,fakturace!#REF!,0) ->  | B151: =OFFSET(fakturace!C164,fakturace!#REF!,0) ->  | C151: =OFFSET(fakturace!F164,fakturace!#REF!,0) -> 
A152: =OFFSET(fakturace!B165,fakturace!#REF!,0) ->  | B152: =OFFSET(fakturace!C165,fakturace!#REF!,0) ->  | C152: =OFFSET(fakturace!F165,fakturace!#REF!,0) -> 
A153: =OFFSET(fakturace!B166,fakturace!#REF!,0) ->  | B153: =OFFSET(fakturace!C166,fakturace!#REF!,0) ->  | C153: =OFFSET(fakturace!F166,fakturace!#REF!,0) -> 
A154: =OFFSET(fakturace!B167,fakturace!#REF!,0) ->  | B154: =OFFSET(fakturace!C167,fakturace!#REF!,0) ->  | C154: =OFFSET(fakturace!F167,fakturace!#REF!,0) -> 
A155: =OFFSET(fakturace!B168,fakturace!#REF!,0) ->  | B155: =OFFSET(fakturace!C168,fakturace!#REF!,0) ->  | C155: =OFFSET(fakturace!F168,fakturace!#REF!,0) -> 
A156: =OFFSET(fakturace!B169,fakturace!#REF!,0) ->  | B156: =OFFSET(fakturace!C169,fakturace!#REF!,0) ->  | C156: =OFFSET(fakturace!F169,fakturace!#REF!,0) -> 
A157: =OFFSET(fakturace!B170,fakturace!#REF!,0) ->  | B157: =OFFSET(fakturace!C170,fakturace!#REF!,0) ->  | C157: =OFFSET(fakturace!F170,fakturace!#REF!,0) -> 
A158: =OFFSET(fakturace!B171,fakturace!#REF!,0) ->  | B158: =OFFSET(fakturace!C171,fakturace!#REF!,0) ->  | C158: =OFFSET(fakturace!F171,fakturace!#REF!,0) -> 
A159: =OFFSET(fakturace!B172,fakturace!#REF!,0) ->  | B159: =OFFSET(fakturace!C172,fakturace!#REF!,0) ->  | C159: =OFFSET(fakturace!F172,fakturace!#REF!,0) -> 
A160: =OFFSET(fakturace!B173,fakturace!#REF!,0) ->  | B160: =OFFSET(fakturace!C173,fakturace!#REF!,0) ->  | C160: =OFFSET(fakturace!F173,fakturace!#REF!,0) -> 
A161: =OFFSET(fakturace!B174,fakturace!#REF!,0) ->  | B161: =OFFSET(fakturace!C174,fakturace!#REF!,0) ->  | C161: =OFFSET(fakturace!F174,fakturace!#REF!,0) -> 
A162: =OFFSET(fakturace!B175,fakturace!#REF!,0) ->  | B162: =OFFSET(fakturace!C175,fakturace!#REF!,0) ->  | C162: =OFFSET(fakturace!F175,fakturace!#REF!,0) -> 
A163: =OFFSET(fakturace!B176,fakturace!#REF!,0) ->  | B163: =OFFSET(fakturace!C176,fakturace!#REF!,0) ->  | C163: =OFFSET(fakturace!F176,fakturace!#REF!,0) -> 
A164: =OFFSET(fakturace!B177,fakturace!#REF!,0) ->  | B164: =OFFSET(fakturace!C177,fakturace!#REF!,0) ->  | C164: =OFFSET(fakturace!F177,fakturace!#REF!,0) -> 
A165: =OFFSET(fakturace!B178,fakturace!#REF!,0) ->  | B165: =OFFSET(fakturace!C178,fakturace!#REF!,0) ->  | C165: =OFFSET(fakturace!F178,fakturace!#REF!,0) -> 
A166: =OFFSET(fakturace!B179,fakturace!#REF!,0) ->  | B166: =OFFSET(fakturace!C179,fakturace!#REF!,0) ->  | C166: =OFFSET(fakturace!F179,fakturace!#REF!,0) -> 
A167: =OFFSET(fakturace!B180,fakturace!#REF!,0) ->  | B167: =OFFSET(fakturace!C180,fakturace!#REF!,0) ->  | C167: =OFFSET(fakturace!F180,fakturace!#REF!,0) -> 
A168: =OFFSET(fakturace!B181,fakturace!#REF!,0) ->  | B168: =OFFSET(fakturace!C181,fakturace!#REF!,0) ->  | C168: =OFFSET(fakturace!F181,fakturace!#REF!,0) -> 
A169: =OFFSET(fakturace!B182,fakturace!#REF!,0) ->  | B169: =OFFSET(fakturace!C182,fakturace!#REF!,0) ->  | C169: =OFFSET(fakturace!F182,fakturace!#REF!,0) -> 
A170: =OFFSET(fakturace!B183,fakturace!#REF!,0) ->  | B170: =OFFSET(fakturace!C183,fakturace!#REF!,0) ->  | C170: =OFFSET(fakturace!F183,fakturace!#REF!,0) -> 
A171: =OFFSET(fakturace!B184,fakturace!#REF!,0) ->  | B171: =OFFSET(fakturace!C184,fakturace!#REF!,0) ->  | C171: =OFFSET(fakturace!F184,fakturace!#REF!,0) -> 
A172: =OFFSET(fakturace!B185,fakturace!#REF!,0) ->  | B172: =OFFSET(fakturace!C185,fakturace!#REF!,0) ->  | C172: =OFFSET(fakturace!F185,fakturace!#REF!,0) -> 
A173: =OFFSET(fakturace!B186,fakturace!#REF!,0) ->  | B173: =OFFSET(fakturace!C186,fakturace!#REF!,0) ->  | C173: =OFFSET(fakturace!F186,fakturace!#REF!,0) -> 
A174: =OFFSET(fakturace!B187,fakturace!#REF!,0) ->  | B174: =OFFSET(fakturace!C187,fakturace!#REF!,0) ->  | C174: =OFFSET(fakturace!F187,fakturace!#REF!,0) -> 
A175: =OFFSET(fakturace!B188,fakturace!#REF!,0) ->  | B175: =OFFSET(fakturace!C188,fakturace!#REF!,0) ->  | C175: =OFFSET(fakturace!F188,fakturace!#REF!,0) -> 
A176: =OFFSET(fakturace!B189,fakturace!#REF!,0) ->  | B176: =OFFSET(fakturace!C189,fakturace!#REF!,0) ->  | C176: =OFFSET(fakturace!F189,fakturace!#REF!,0) -> 
A177: =OFFSET(fakturace!B190,fakturace!#REF!,0) ->  | B177: =OFFSET(fakturace!C190,fakturace!#REF!,0) ->  | C177: =OFFSET(fakturace!F190,fakturace!#REF!,0) -> 
A178: =OFFSET(fakturace!B191,fakturace!#REF!,0) ->  | B178: =OFFSET(fakturace!C191,fakturace!#REF!,0) ->  | C178: =OFFSET(fakturace!F191,fakturace!#REF!,0) -> 
A179: =OFFSET(fakturace!B192,fakturace!#REF!,0) ->  | B179: =OFFSET(fakturace!C192,fakturace!#REF!,0) ->  | C179: =OFFSET(fakturace!F192,fakturace!#REF!,0) -> 
A180: =OFFSET(fakturace!B193,fakturace!#REF!,0) ->  | B180: =OFFSET(fakturace!C193,fakturace!#REF!,0) ->  | C180: =OFFSET(fakturace!F193,fakturace!#REF!,0) -> 
A181: =OFFSET(fakturace!B194,fakturace!#REF!,0) ->  | B181: =OFFSET(fakturace!C194,fakturace!#REF!,0) ->  | C181: =OFFSET(fakturace!F194,fakturace!#REF!,0) -> 
A182: =OFFSET(fakturace!B195,fakturace!#REF!,0) ->  | B182: =OFFSET(fakturace!C195,fakturace!#REF!,0) ->  | C182: =OFFSET(fakturace!F195,fakturace!#REF!,0) -> 
A183: =OFFSET(fakturace!B196,fakturace!#REF!,0) ->  | B183: =OFFSET(fakturace!C196,fakturace!#REF!,0) ->  | C183: =OFFSET(fakturace!F196,fakturace!#REF!,0) -> 
A184: =OFFSET(fakturace!B197,fakturace!#REF!,0) ->  | B184: =OFFSET(fakturace!C197,fakturace!#REF!,0) ->  | C184: =OFFSET(fakturace!F197,fakturace!#REF!,0) -> 
A185: =OFFSET(fakturace!B198,fakturace!#REF!,0) ->  | B185: =OFFSET(fakturace!C198,fakturace!#REF!,0) ->  | C185: =OFFSET(fakturace!F198,fakturace!#REF!,0) -> 
A186: =OFFSET(fakturace!B199,fakturace!#REF!,0) ->  | B186: =OFFSET(fakturace!C199,fakturace!#REF!,0) ->  | C186: =OFFSET(fakturace!F199,fakturace!#REF!,0) -> 
A187: =OFFSET(fakturace!B200,fakturace!#REF!,0) ->  | B187: =OFFSET(fakturace!C200,fakturace!#REF!,0) ->  | C187: =OFFSET(fakturace!F200,fakturace!#REF!,0) -> 
A188: =OFFSET(fakturace!B201,fakturace!#REF!,0) ->  | B188: =OFFSET(fakturace!C201,fakturace!#REF!,0) ->  | C188: =OFFSET(fakturace!F201,fakturace!#REF!,0) -> 
A189: =OFFSET(fakturace!B202,fakturace!#REF!,0) ->  | B189: =OFFSET(fakturace!C202,fakturace!#REF!,0) ->  | C189: =OFFSET(fakturace!F202,fakturace!#REF!,0) -> 
A190: =OFFSET(fakturace!B203,fakturace!#REF!,0) ->  | B190: =OFFSET(fakturace!C203,fakturace!#REF!,0) ->  | C190: =OFFSET(fakturace!F203,fakturace!#REF!,0) -> 
A191: =OFFSET(fakturace!B204,fakturace!#REF!,0) ->  | B191: =OFFSET(fakturace!C204,fakturace!#REF!,0) ->  | C191: =OFFSET(fakturace!F204,fakturace!#REF!,0) -> 
A192: =OFFSET(fakturace!B205,fakturace!#REF!,0) ->  | B192: =OFFSET(fakturace!C205,fakturace!#REF!,0) ->  | C192: =OFFSET(fakturace!F205,fakturace!#REF!,0) -> 
A193: =OFFSET(fakturace!B206,fakturace!#REF!,0) ->  | B193: =OFFSET(fakturace!C206,fakturace!#REF!,0) ->  | C193: =OFFSET(fakturace!F206,fakturace!#REF!,0) -> 
A194: =OFFSET(fakturace!B207,fakturace!#REF!,0) ->  | B194: =OFFSET(fakturace!C207,fakturace!#REF!,0) ->  | C194: =OFFSET(fakturace!F207,fakturace!#REF!,0) -> 
A195: =OFFSET(fakturace!B208,fakturace!#REF!,0) ->  | B195: =OFFSET(fakturace!C208,fakturace!#REF!,0) ->  | C195: =OFFSET(fakturace!F208,fakturace!#REF!,0) -> 
A196: =OFFSET(fakturace!B209,fakturace!#REF!,0) ->  | B196: =OFFSET(fakturace!C209,fakturace!#REF!,0) ->  | C196: =OFFSET(fakturace!F209,fakturace!#REF!,0) -> 
A197: =OFFSET(fakturace!B210,fakturace!#REF!,0) ->  | B197: =OFFSET(fakturace!C210,fakturace!#REF!,0) ->  | C197: =OFFSET(fakturace!F210,fakturace!#REF!,0) -> 
A198: =OFFSET(fakturace!B211,fakturace!#REF!,0) ->  | B198: =OFFSET(fakturace!C211,fakturace!#REF!,0) ->  | C198: =OFFSET(fakturace!F211,fakturace!#REF!,0) -> 
A199: =OFFSET(fakturace!B212,fakturace!#REF!,0) ->  | B199: =OFFSET(fakturace!C212,fakturace!#REF!,0) ->  | C199: =OFFSET(fakturace!F212,fakturace!#REF!,0) -> 
A200: =OFFSET(fakturace!B213,fakturace!#REF!,0) ->  | B200: =OFFSET(fakturace!C213,fakturace!#REF!,0) ->  | C200: =OFFSET(fakturace!F213,fakturace!#REF!,0) -> 
... 546 more rows

Sheet DATA-GRAF-72H (hidden)
A2: D3 | D2: Posuvník | F2: =" ("&TEXT($A$4,"DD.MM.RRRR HH:MM")&") - ("&TEXT($A$75,"DD.MM.RRRR HH:MM")&")" -> (01.01.2015 00:00) - (03.01.2015 23:00)
A3: Datum | B3: měření [MWh] | C3: cenový tarif [Kc/MWh] | D3: 0
A4: =OFFSET(fakturace!B16,'DATA-GRAF-72H'!$D$3,0) -> 2015-01-01 | B4: =OFFSET(fakturace!C16,'DATA-GRAF-72H'!$D$3,0) -> 0 | C4: =OFFSET(fakturace!F16,'DATA-GRAF-72H'!$D$3,0) -> 134.158
A5: =OFFSET(fakturace!B17,'DATA-GRAF-72H'!$D$3,0) -> 2015-01-01T01:00:00 | B5: =OFFSET(fakturace!C17,'DATA-GRAF-72H'!$D$3,0) -> 0 | C5: =OFFSET(fakturace!F17,'DATA-GRAF-72H'!$D$3,0) -> 70.945
A6: =OFFSET(fakturace!B18,'DATA-GRAF-72H'!$D$3,0) -> 2015-01-01T02:00:00 | B6: =OFFSET(fakturace!C18,'DATA-GRAF-72H'!$D$3,0) -> 0 | C6: =OFFSET(fakturace!F18,'DATA-GRAF-72H'!$D$3,0) -> 11.6135
A7: =OFFSET(fakturace!B19,'DATA-GRAF-72H'!$D$3,0) -> 2015-01-01T03:00:00 | B7: =OFFSET(fakturace!C19,'DATA-GRAF-72H'!$D$3,0) -> 0 | C7: =OFFSET(fakturace!F19,'DATA-GRAF-72H'!$D$3,0) -> -38.01425
A8: =OFFSET(fakturace!B20,'DATA-GRAF-72H'!$D$3,0) -> 2015-01-01T04:00:00 | B8: =OFFSET(fakturace!C20,'DATA-GRAF-72H'!$D$3,0) -> 0 | C8: =OFFSET(fakturace!F20,'DATA-GRAF-72H'!$D$3,0) -> -68.51175
A9: =OFFSET(fakturace!B21,'DATA-GRAF-72H'!$D$3,0) -> 2015-01-01T05:00:00 | B9: =OFFSET(fakturace!C21,'DATA-GRAF-72H'!$D$3,0) -> 0 | C9: =OFFSET(fakturace!F21,'DATA-GRAF-72H'!$D$3,0) -> -103.7225
A10: =OFFSET(fakturace!B22,'DATA-GRAF-72H'!$D$3,0) -> 2015-01-01T06:00:00 | B10: =OFFSET(fakturace!C22,'DATA-GRAF-72H'!$D$3,0) -> 0 | C10: =OFFSET(fakturace!F22,'DATA-GRAF-72H'!$D$3,0) -> -120.63475
A11: =OFFSET(fakturace!B23,'DATA-GRAF-72H'!$D$3,0) -> 2015-01-01T07:00:00 | B11: =OFFSET(fakturace!C23,'DATA-GRAF-72H'!$D$3,0) -> 0 | C11: =OFFSET(fakturace!F23,'DATA-GRAF-72H'!$D$3,0) -> -117.86225
A12: =OFFSET(fakturace!B24,'DATA-GRAF-72H'!$D$3,0) -> 2015-01-01T08:00:00 | B12: =OFFSET(fakturace!C24,'DATA-GRAF-72H'!$D$3,0) -> 0 | C12: =OFFSET(fakturace!F24,'DATA-GRAF-72H'!$D$3,0) -> -160.836
A13: =OFFSET(fakturace!B25,'DATA-GRAF-72H'!$D$3,0) -> 2015-01-01T09:00:00 | B13: =OFFSET(fakturace!C25,'DATA-GRAF-72H'!$D$3,0) -> 0 | C13: =OFFSET(fakturace!F25,'DATA-GRAF-72H'!$D$3,0) -> -85.70125
A14: =OFFSET(fakturace!B26,'DATA-GRAF-72H'!$D$3,0) -> 2015-01-01T10:00:00 | B14: =OFFSET(fakturace!C26,'DATA-GRAF-72H'!$D$3,0) -> 0 | C14: =OFFSET(fakturace!F26,'DATA-GRAF-72H'!$D$3,0) -> 9.11825
A15: =OFFSET(fakturace!B27,'DATA-GRAF-72H'!$D$3,0) -> 2015-01-01T11:00:00 | B15: =OFFSET(fakturace!C27,'DATA-GRAF-72H'!$D$3,0) -> 0 | C15: =OFFSET(fakturace!F27,'DATA-GRAF-72H'!$D$3,0) -> 63.7365
A16: =OFFSET(fakturace!B28,'DATA-GRAF-72H'!$D$3,0) -> 2015-01-01T12:00:00 | B16: =OFFSET(fakturace!C28,'DATA-GRAF-72H'!$D$3,0) -> 0 | C16: =OFFSET(fakturace!F28,'DATA-GRAF-72H'!$D$3,0) -> 89.52075
A17: =OFFSET(fakturace!B29,'DATA-GRAF-72H'!$D$3,0) -> 2015-01-01T13:00:00 | B17: =OFFSET(fakturace!C29,'DATA-GRAF-72H'!$D$3,0) -> 0 | C17: =OFFSET(fakturace!F29,'DATA-GRAF-72H'!$D$3,0) -> 65.4
A18: =OFFSET(fakturace!B30,'DATA-GRAF-72H'!$D$3,0) -> 2015-01-01T14:00:00 | B18: =OFFSET(fakturace!C30,'DATA-GRAF-72H'!$D$3,0) -> 0 | C18: =OFFSET(fakturace!F30,'DATA-GRAF-72H'!$D$3,0) -> 48.765
A19: =OFFSET(fakturace!B31,'DATA-GRAF-72H'!$D$3,0) -> 2015-01-01T15:00:00 | B19: =OFFSET(fakturace!C31,'DATA-GRAF-72H'!$D$3,0) -> 0 | C19: =OFFSET(fakturace!F31,'DATA-GRAF-72H'!$D$3,0) -> 45.9925
A20: =OFFSET(fakturace!B32,'DATA-GRAF-72H'!$D$3,0) -> 2015-01-01T16:00:00 | B20: =OFFSET(fakturace!C32,'DATA-GRAF-72H'!$D$3,0) -> 0 | C20: =OFFSET(fakturace!F32,'DATA-GRAF-72H'!$D$3,0) -> 118.0775
A21: =OFFSET(fakturace!B33,'DATA-GRAF-72H'!$D$3,0) -> 2015-01-01T17:00:00 | B21: =OFFSET(fakturace!C33,'DATA-GRAF-72H'!$D$3,0) -> 0 | C21: =OFFSET(fakturace!F33,'DATA-GRAF-72H'!$D$3,0) -> 245.6125
A22: =OFFSET(fakturace!B34,'DATA-GRAF-72H'!$D$3,0) -> 2015-01-01T18:00:00 | B22: =OFFSET(fakturace!C34,'DATA-GRAF-72H'!$D$3,0) -> 0 | C22: =OFFSET(fakturace!F34,'DATA-GRAF-72H'!$D$3,0) -> 208.73825
A23: =OFFSET(fakturace!B35,'DATA-GRAF-72H'!$D$3,0) -> 2015-01-01T19:00:00 | B23: =OFFSET(fakturace!C35,'DATA-GRAF-72H'!$D$3,0) -> 0 | C23: =OFFSET(fakturace!F35,'DATA-GRAF-72H'!$D$3,0) -> 151.07025
A24: =OFFSET(fakturace!B36,'DATA-GRAF-72H'!$D$3,0) -> 2015-01-01T20:00:00 | B24: =OFFSET(fakturace!C36,'DATA-GRAF-72H'!$D$3,0) -> 0 | C24: =OFFSET(fakturace!F36,'DATA-GRAF-72H'!$D$3,0) -> 15.495
A25: =OFFSET(fakturace!B37,'DATA-GRAF-72H'!$D$3,0) -> 2015-01-01T21:00:00 | B25: =OFFSET(fakturace!C37,'DATA-GRAF-72H'!$D$3,0) -> 0 | C25: =OFFSET(fakturace!F37,'DATA-GRAF-72H'!$D$3,0) -> -100.95
A26: =OFFSET(fakturace!B38,'DATA-GRAF-72H'!$D$3,0) -> 2015-01-01T22:00:00 | B26: =OFFSET(fakturace!C38,'DATA-GRAF-72H'!$D$3,0) -> 0 | C26: =OFFSET(fakturace!F38,'DATA-GRAF-72H'!$D$3,0) -> -136.9925
A27: =OFFSET(fakturace!B39,'DATA-GRAF-72H'!$D$3,0) -> 2015-01-01T23:00:00 | B27: =OFFSET(fakturace!C39,'DATA-GRAF-72H'!$D$3,0) -> 0 | C27: =OFFSET(fakturace!F39,'DATA-GRAF-72H'!$D$3,0) -> -303.3425
A28: =OFFSET(fakturace!B40,'DATA-GRAF-72H'!$D$3,0) -> 2015-01-02 | B28: =OFFSET(fakturace!C40,'DATA-GRAF-72H'!$D$3,0) -> 0 | C28: =OFFSET(fakturace!F40,'DATA-GRAF-72H'!$D$3,0) -> -599.723
A29: =OFFSET(fakturace!B41,'DATA-GRAF-72H'!$D$3,0) -> 2015-01-02T01:00:00 | B29: =OFFSET(fakturace!C41,'DATA-GRAF-72H'!$D$3,0) -> 0 | C29: =OFFSET(fakturace!F41,'DATA-GRAF-72H'!$D$3,0) -> -608.31
A30: =OFFSET(fakturace!B42,'DATA-GRAF-72H'!$D$3,0) -> 2015-01-02T02:00:00 | B30: =OFFSET(fakturace!C42,'DATA-GRAF-72H'!$D$3,0) -> 0 | C30: =OFFSET(fakturace!F42,'DATA-GRAF-72H'!$D$3,0) -> -696.95
A31: =OFFSET(fakturace!B43,'DATA-GRAF-72H'!$D$3,0) -> 2015-01-02T03:00:00 | B31: =OFFSET(fakturace!C43,'DATA-GRAF-72H'!$D$3,0) -> 0 | C31: =OFFSET(fakturace!F43,'DATA-GRAF-72H'!$D$3,0) -> -716.34
A32: =OFFSET(fakturace!B44,'DATA-GRAF-72H'!$D$3,0) -> 2015-01-02T04:00:00 | B32: =OFFSET(fakturace!C44,'DATA-GRAF-72H'!$D$3,0) -> 0 | C32: =OFFSET(fakturace!F44,'DATA-GRAF-72H'!$D$3,0) -> -690.302
A33: =OFFSET(fakturace!B45,'DATA-GRAF-72H'!$D$3,0) -> 2015-01-02T05:00:00 | B33: =OFFSET(fakturace!C45,'DATA-GRAF-72H'!$D$3,0) -> 0 | C33: =OFFSET(fakturace!F45,'DATA-GRAF-72H'!$D$3,0) -> -605.54
A34: =OFFSET(fakturace!B46,'DATA-GRAF-72H'!$D$3,0) -> 2015-01-02T06:00:00 | B34: =OFFSET(fakturace!C46,'DATA-GRAF-72H'!$D$3,0) -> 0 | C34: =OFFSET(fakturace!F46,'DATA-GRAF-72H'!$D$3,0) -> -550.14
A35: =OFFSET(fakturace!B47,'DATA-GRAF-72H'!$D$3,0) -> 2015-01-02T07:00:00 | B35: =OFFSET(fakturace!C47,'DATA-GRAF-72H'!$D$3,0) -> 0 | C35: =OFFSET(fakturace!F47,'DATA-GRAF-72H'!$D$3,0) -> -359.01
A36: =OFFSET(fakturace!B48,'DATA-GRAF-72H'!$D$3,0) -> 2015-01-02T08:00:00 | B36: =OFFSET(fakturace!C48,'DATA-GRAF-72H'!$D$3,0) -> 0 | C36: =OFFSET(fakturace!F48,'DATA-GRAF-72H'!$D$3,0) -> -235.745
A37: =OFFSET(fakturace!B49,'DATA-GRAF-72H'!$D$3,0) -> 2015-01-02T09:00:00 | B37: =OFFSET(fakturace!C49,'DATA-GRAF-72H'!$D$3,0) -> 0 | C37: =OFFSET(fakturace!F49,'DATA-GRAF-72H'!$D$3,0) -> -123.56
A38: =OFFSET(fakturace!B50,'DATA-GRAF-72H'!$D$3,0) -> 2015-01-02T10:00:00 | B38: =OFFSET(fakturace!C50,'DATA-GRAF-72H'!$D$3,0) -> 0 | C38: =OFFSET(fakturace!F50,'DATA-GRAF-72H'!$D$3,0) -> -73.7
A39: =OFFSET(fakturace!B51,'DATA-GRAF-72H'!$D$3,0) -> 2015-01-02T11:00:00 | B39: =OFFSET(fakturace!C51,'DATA-GRAF-72H'!$D$3,0) -> 0 | C39: =OFFSET(fakturace!F51,'DATA-GRAF-72H'!$D$3,0) -> -69.545
A40: =OFFSET(fakturace!B52,'DATA-GRAF-72H'!$D$3,0) -> 2015-01-02T12:00:00 | B40: =OFFSET(fakturace!C52,'DATA-GRAF-72H'!$D$3,0) -> 0 | C40: =OFFSET(fakturace!F52,'DATA-GRAF-72H'!$D$3,0) -> -46
A41: =OFFSET(fakturace!B53,'DATA-GRAF-72H'!$D$3,0) -> 2015-01-02T13:00:00 | B41: =OFFSET(fakturace!C53,'DATA-GRAF-72H'!$D$3,0) -> 0 | C41: =OFFSET(fakturace!F53,'DATA-GRAF-72H'!$D$3,0) -> -46
A42: =OFFSET(fakturace!B54,'DATA-GRAF-72H'!$D$3,0) -> 2015-01-02T14:00:00 | B42: =OFFSET(fakturace!C54,'DATA-GRAF-72H'!$D$3,0) -> 0 | C42: =OFFSET(fakturace!F54,'DATA-GRAF-72H'!$D$3,0) -> -32.15
A43: =OFFSET(fakturace!B55,'DATA-GRAF-72H'!$D$3,0) -> 2015-01-02T15:00:00 | B43: =OFFSET(fakturace!C55,'DATA-GRAF-72H'!$D$3,0) -> 0 | C43: =OFFSET(fakturace!F55,'DATA-GRAF-72H'!$D$3,0) -> -32.15
A44: =OFFSET(fakturace!B56,'DATA-GRAF-72H'!$D$3,0) -> 2015-01-02T16:00:00 | B44: =OFFSET(fakturace!C56,'DATA-GRAF-72H'!$D$3,0) -> 0 | C44: =OFFSET(fakturace!F56,'DATA-GRAF-72H'!$D$3,0) -> 37.1
A45: =OFFSET(fakturace!B57,'DATA-GRAF-72H'!$D$3,0) -> 2015-01-02T17:00:00 | B45: =OFFSET(fakturace!C57,'DATA-GRAF-72H'!$D$3,0) -> 0 | C45: =OFFSET(fakturace!F57,'DATA-GRAF-72H'!$D$3,0) -> 120.2
A46: =OFFSET(fakturace!B58,'DATA-GRAF-72H'!$D$3,0) -> 2015-01-02T18:00:00 | B46: =OFFSET(fakturace!C58,'DATA-GRAF-72H'!$D$3,0) -> 0 | C46: =OFFSET(fakturace!F58,'DATA-GRAF-72H'!$D$3,0) -> 106.35
A47: =OFFSET(fakturace!B59,'DATA-GRAF-72H'!$D$3,0) -> 2015-01-02T19:00:00 | B47: =OFFSET(fakturace!C59,'DATA-GRAF-72H'!$D$3,0) -> 0 | C47: =OFFSET(fakturace!F59,'DATA-GRAF-72H'!$D$3,0) -> 37.1
A48: =OFFSET(fakturace!B60,'DATA-GRAF-72H'!$D$3,0) -> 2015-01-02T20:00:00 | B48: =OFFSET(fakturace!C60,'DATA-GRAF-72H'!$D$3,0) -> 0 | C48: =OFFSET(fakturace!F60,'DATA-GRAF-72H'!$D$3,0) -> -123.56
A49: =OFFSET(fakturace!B61,'DATA-GRAF-72H'!$D$3,0) -> 2015-01-02T21:00:00 | B49: =OFFSET(fakturace!C61,'DATA-GRAF-72H'!$D$3,0) -> 0 | C49: =OFFSET(fakturace!F61,'DATA-GRAF-72H'!$D$3,0) -> -212.2
A50: =OFFSET(fakturace!B62,'DATA-GRAF-72H'!$D$3,0) -> 2015-01-02T22:00:00 | B50: =OFFSET(fakturace!C62,'DATA-GRAF-72H'!$D$3,0) -> 0 | C50: =OFFSET(fakturace!F62,'DATA-GRAF-72H'!$D$3,0) -> -277.295
A51: =OFFSET(fakturace!B63,'DATA-GRAF-72H'!$D$3,0) -> 2015-01-02T23:00:00 | B51: =OFFSET(fakturace!C63,'DATA-GRAF-72H'!$D$3,0) -> 0 | C51: =OFFSET(fakturace!F63,'DATA-GRAF-72H'!$D$3,0) -> -461.5
A52: =OFFSET(fakturace!B64,'DATA-GRAF-72H'!$D$3,0) -> 2015-01-03 | B52: =OFFSET(fakturace!C64,'DATA-GRAF-72H'!$D$3,0) -> 0 | C52: =OFFSET(fakturace!F64,'DATA-GRAF-72H'!$D$3,0) -> -583.657
A53: =OFFSET(fakturace!B65,'DATA-GRAF-72H'!$D$3,0) -> 2015-01-03T01:00:00 | B53: =OFFSET(fakturace!C65,'DATA-GRAF-72H'!$D$3,0) -> 0 | C53: =OFFSET(fakturace!F65,'DATA-GRAF-72H'!$D$3,0) -> -619.39
A54: =OFFSET(fakturace!B66,'DATA-GRAF-72H'!$D$3,0) -> 2015-01-03T02:00:00 | B54: =OFFSET(fakturace!C66,'DATA-GRAF-72H'!$D$3,0) -> 0 | C54: =OFFSET(fakturace!F66,'DATA-GRAF-72H'!$D$3,0) -> -655.4
A55: =OFFSET(fakturace!B67,'DATA-GRAF-72H'!$D$3,0) -> 2015-01-03T03:00:00 | B55: =OFFSET(fakturace!C67,'DATA-GRAF-72H'!$D$3,0) -> 0 | C55: =OFFSET(fakturace!F67,'DATA-GRAF-72H'!$D$3,0) -> -629.362
A56: =OFFSET(fakturace!B68,'DATA-GRAF-72H'!$D$3,0) -> 2015-01-03T04:00:00 | B56: =OFFSET(fakturace!C68,'DATA-GRAF-72H'!$D$3,0) -> 0 | C56: =OFFSET(fakturace!F68,'DATA-GRAF-72H'!$D$3,0) -> -593.075
A57: =OFFSET(fakturace!B69,'DATA-GRAF-72H'!$D$3,0) -> 2015-01-03T05:00:00 | B57: =OFFSET(fakturace!C69,'DATA-GRAF-72H'!$D$3,0) -> 0 | C57: =OFFSET(fakturace!F69,'DATA-GRAF-72H'!$D$3,0) -> -572.577
A58: =OFFSET(fakturace!B70,'DATA-GRAF-72H'!$D$3,0) -> 2015-01-03T06:00:00 | B58: =OFFSET(fakturace!C70,'DATA-GRAF-72H'!$D$3,0) -> 0 | C58: =OFFSET(fakturace!F70,'DATA-GRAF-72H'!$D$3,0) -> -454.298
A59: =OFFSET(fakturace!B71,'DATA-GRAF-72H'!$D$3,0) -> 2015-01-03T07:00:00 | B59: =OFFSET(fakturace!C71,'DATA-GRAF-72H'!$D$3,0) -> 0 | C59: =OFFSET(fakturace!F71,'DATA-GRAF-72H'!$D$3,0) -> -272.032
A60: =OFFSET(fakturace!B72,'DATA-GRAF-72H'!$D$3,0) -> 2015-01-03T08:00:00 | B60: =OFFSET(fakturace!C72,'DATA-GRAF-72H'!$D$3,0) -> 0 | C60: =OFFSET(fakturace!F72,'DATA-GRAF-72H'!$D$3,0) -> -176.19
A61: =OFFSET(fakturace!B73,'DATA-GRAF-72H'!$D$3,0) -> 2015-01-03T09:00:00 | B61: =OFFSET(fakturace!C73,'DATA-GRAF-72H'!$D$3,0) -> 0 | C61: =OFFSET(fakturace!F73,'DATA-GRAF-72H'!$D$3,0) -> -72.315
A62: =OFFSET(fakturace!B74,'DATA-GRAF-72H'!$D$3,0) -> 2015-01-03T10:00:00 | B62: =OFFSET(fakturace!C74,'DATA-GRAF-72H'!$D$3,0) -> 0 | C62: =OFFSET(fakturace!F74,'DATA-GRAF-72H'!$D$3,0) -> 19.649
A63: =OFFSET(fakturace!B75,'DATA-GRAF-72H'!$D$3,0) -> 2015-01-03T11:00:00 | B63: =OFFSET(fakturace!C75,'DATA-GRAF-72H'!$D$3,0) -> 0 | C63: =OFFSET(fakturace!F75,'DATA-GRAF-72H'!$D$3,0) -> 53.443
A64: =OFFSET(fakturace!B76,'DATA-GRAF-72H'!$D$3,0) -> 2015-01-03T12:00:00 | B64: =OFFSET(fakturace!C76,'DATA-GRAF-72H'!$D$3,0) -> 0 | C64: =OFFSET(fakturace!F76,'DATA-GRAF-72H'!$D$3,0) -> 70.894
A65: =OFFSET(fakturace!B77,'DATA-GRAF-72H'!$D$3,0) -> 2015-01-03T13:00:00 | B65: =OFFSET(fakturace!C77,'DATA-GRAF-72H'!$D$3,0) -> 0 | C65: =OFFSET(fakturace!F77,'DATA-GRAF-72H'!$D$3,0) -> 64.8
A66: =OFFSET(fakturace!B78,'DATA-GRAF-72H'!$D$3,0) -> 2015-01-03T14:00:00 | B66: =OFFSET(fakturace!C78,'DATA-GRAF-72H'!$D$3,0) -> 0 | C66: =OFFSET(fakturace!F78,'DATA-GRAF-72H'!$D$3,0) -> 146.238
A67: =OFFSET(fakturace!B79,'DATA-GRAF-72H'!$D$3,0) -> 2015-01-03T15:00:00 | B67: =OFFSET(fakturace!C79,'DATA-GRAF-72H'!$D$3,0) -> 0 | C67: =OFFSET(fakturace!F79,'DATA-GRAF-72H'!$D$3,0) -> 214.38
A68: =OFFSET(fakturace!B80,'DATA-GRAF-72H'!$D$3,0) -> 2015-01-03T16:00:00 | B68: =OFFSET(fakturace!C80,'DATA-GRAF-72H'!$D$3,0) -> 0 | C68: =OFFSET(fakturace!F80,'DATA-GRAF-72H'!$D$3,0) -> 285.292
A69: =OFFSET(fakturace!B81,'DATA-GRAF-72H'!$D$3,0) -> 2015-01-03T17:00:00 | B69: =OFFSET(fakturace!C81,'DATA-GRAF-72H'!$D$3,0) -> 0 | C69: =OFFSET(fakturace!F81,'DATA-GRAF-72H'!$D$3,0) -> 458.694
A70: =OFFSET(fakturace!B82,'DATA-GRAF-72H'!$D$3,0) -> 2015-01-03T18:00:00 | B70: =OFFSET(fakturace!C82,'DATA-GRAF-72H'!$D$3,0) -> 0 | C70: =OFFSET(fakturace!F82,'DATA-GRAF-72H'!$D$3,0) -> 508
A71: =OFFSET(fakturace!B83,'DATA-GRAF-72H'!$D$3,0) -> 2015-01-03T19:00:00 | B71: =OFFSET(fakturace!C83,'DATA-GRAF-72H'!$D$3,0) -> 0 | C71: =OFFSET(fakturace!F83,'DATA-GRAF-72H'!$D$3,0) -> 408.28
A72: =OFFSET(fakturace!B84,'DATA-GRAF-72H'!$D$3,0) -> 2015-01-03T20:00:00 | B72: =OFFSET(fakturace!C84,'DATA-GRAF-72H'!$D$3,0) -> 0 | C72: =OFFSET(fakturace!F84,'DATA-GRAF-72H'!$D$3,0) -> 222.69
A73: =OFFSET(fakturace!B85,'DATA-GRAF-72H'!$D$3,0) -> 2015-01-03T21:00:00 | B73: =OFFSET(fakturace!C85,'DATA-GRAF-72H'!$D$3,0) -> 0 | C73: =OFFSET(fakturace!F85,'DATA-GRAF-72H'!$D$3,0) -> 100.81
A74: =OFFSET(fakturace!B86,'DATA-GRAF-72H'!$D$3,0) -> 2015-01-03T22:00:00 | B74: =OFFSET(fakturace!C86,'DATA-GRAF-72H'!$D$3,0) -> 0 | C74: =OFFSET(fakturace!F86,'DATA-GRAF-72H'!$D$3,0) -> -37.967
A75: =OFFSET(fakturace!B87,'DATA-GRAF-72H'!$D$3,0) -> 2015-01-03T23:00:00 | B75: =OFFSET(fakturace!C87,'DATA-GRAF-72H'!$D$3,0) -> 0 | C75: =OFFSET(fakturace!F87,'DATA-GRAF-72H'!$D$3,0) -> -252.642
A76: =OFFSET(fakturace!B88,'DATA-GRAF-72H'!$D$3,0) -> 2015-01-04 | B76: =OFFSET(fakturace!C88,'DATA-GRAF-72H'!$D$3,0) -> 0 | C76: =OFFSET(fakturace!F88,'DATA-GRAF-72H'!$D$3,0) -> -461.5

Sheet Graf
B11: Fakturace výroby
B14: OBJEM SE [MWh] | E14: CENOVÝ TARIF [Kč/MWh]
J19: ="FAKTURACE VÝROBY "&TEXT(fakturace!$G$4,"MMMM RRRR") -> FAKTURACE VÝROBY Q1
J20: =J19&" - 72 HODIN"&'DATA-GRAF-72H'!$F$2 -> FAKTURACE VÝROBY Q1 - 72 HODIN (01.01.2015 00:00) - (03.01.2015 23:00)
M53: 5
B63: OBJEM SE [MWh] | E63: CENOVÝ TARIF [Kč/MWh]
